Cogmind - Beta 17.1 @@@ ROGUE MODE // 2026.09.07 @ 12:46:08 Player: C0-2MO Result: Escaped! Performance ------------- Evolutions (9) 4500 Regions Visited (35) 7000 Robots Destroyed (479) 2395 Value Destroyed (21865) 21865 Prototype IDs (236) 4720 Alien Tech Used (5) 1000 Bonus (61767) 61767 TOTAL SCORE: 103247 Bonus ------- High Alert Combat Kills 5948 Follower Combat Kills 2314 Hunted by Unchained 1000 Spooked CY-PHR 8500 Entered Garrisons 400 Used RIF Installer 1500 Network Hubs Disabled 400 Registered with UFD 300 Met Optimus in HQ 500 Met Zhirov 300 Met R17 at Cetus 500 Met R17 at Research 2000 Acquired SGEMP 2000 Destroyed Superfortress 15000 Met Optimus at Protoforge 1000 Executed Drillbomb Mission 10000 Delivered SGEMP 2000 Destroyed MAIN.C Guards 500 Met MAIN.C 5000 Win 3000 Friendly Fire -395 Cogmind --------- Core Integrity 622/1600 Matter 300/300 Energy 1023/1140 System Corruption 10% Temperature Cool (29) Movement Flying (14) Location To Epsilon Eridani Parts ------- > --- POWER (2) -------- Concept Zero-point Core Concept Zero-point Core > --- PROPULSION (9) --- Cooled Impulse Thruster Cooled Q-thruster Cooled Q-thruster Experimental Biomechanical Wings > --- UTILITY (12) ----- Concept Chromion Battery Quantum Shading Machine Spectral Analyzer Experimental Signal Interpreter Stasis Canceller Concept Cloak Mesh Concept Cloak Mesh Graphene Brace Hacking Suite Improved Hacking Suite > --- WEAPON (2) ------- (None) > --- INVENTORY (5) ---- Concept Lightning Penetrator Concept Plasma Driver Hypervelocity Mass Driver Advanced Datajack Advanced Remote Datajack Peak State ------------ > --- POWER ------------ Concept Zero-point Core Concept Zero-point Core > --- PROPULSION ------- Cooled Field Propulsion Drive Cooled Field Propulsion Drive Improved Diametric Drive Cooled Impulse Thruster Cooled Q-thruster Cooled Q-thruster Experimental Biomechanical Wings Experimental Biomechanical Wings Experimental Surge Thruster > --- UTILITY ---------- Concept Antigrav Storage Unit Quantum Shading Machine Spectral Analyzer Advanced Sensor Array Experimental Signal Interpreter Experimental ECM Suite Concept Cloak Mesh Concept Cloak Mesh Graphene Brace Hacking Suite Hacking Suite Improved Hacking Suite > --- WEAPON ----------- Concept Lightning Penetrator Concept Deflector Sword > --- INVENTORY -------- Concept Zero-point Core Concept Zero-point Core Cooled Nuclear Pulse Thruster Cooled Q-thruster Concept Chromion Battery Concept NT7 Matterbank Quantum Shading Machine Mini Quantum Capacitor Femtoactuators Stasis Canceller Concept Antimissile System Hacking Suite Improved Corruption Screen Improved System Restoration Module Advanced System Restoration Module Advanced System Restoration Module Crosscalibrator Concept Disintegration Ray Concept Plasma Driver Hypervelocity Mass Driver Ragnarok Missile Launcher Advanced Datajack Advanced Remote Datajack Centrium Greatsword [Rating: 253] Favorites ----------- Power Concept Zero-point Core Engine Light Deuterium Engine Power Core Concept Zero-point Core Reactor Graviton Reactor Propulsion Cooled Field Propulsion Drive Treads Light Treads Leg Experimental Biometal Leg Hover Unit Cooled Gravmag System Flight Unit Cooled Field Propulsion Drive Utility Improved Hacking Suite Device Long-range Sensor Array Storage Large Storage Unit Processor Advanced Signal Interpreter Hackware Improved Hacking Suite Protection Improved Propulsion Shielding Weapon Chainsword Energy Gun Concept Lightning Penetrator Energy Cannon Advanced Beam Cannon Ballistic Gun Light Assault Rifle Ballistic Cannon Hypervelocity Mass Driver Launcher Long-range Missile Launcher Special Weapon Advanced Remote Datajack Slashing Weapon Chainsword Special Melee Weapon Advanced Datajack Build | -11 -10 -10 -9 -9 -8 -8 -8 -8 -6 -6 -6 -6 -6 -6 -6 -5 -5 -5 -5 -5 -5 -4 -4 -4 -4 -4 -4 -4 -3 -3 -3 -2 -2 -1 -1 ------- Run | Yrd Mat Min Mat Min Mat Sto Rec Scr Fac Was Fac Ext Cet Arc Hub Fac Was Fac Upp Upp Zhi Pro Fac Was Fac Gar Fac Gar Res Qua Frg Res Tes Acc Com Slots Evolved 18 | . . . 2 . 2 . . . 4 . . . . . . 2 . . . . . . 2 . . . . . 2 . . 2 . 2 . Power 1 | . . . . . . . . . . . . . . . . . . . . . . . . . . . . . 1 . . . . . . Propulsion 7 | . . . 2 . 1 . . . 1 . . . . . . . . . . . . . . . . . . . . . . 2 . 1 . Utility 10 | . . . . . 1 . . . 3 . . . . . . 2 . . . . . . 2 . . . . . 1 . . . . 1 . Weapon . | . . . . . . . . . . . . . . . . . . . . . . . . . . . . . . . . . . . . Parts Attached 294 | 5 2 9 19 . 8 15 1 . 10 2 26 2 2 1 3 21 . 4 1 . 2 1 16 1 8 1 14 1 22 10 46 17 8 4 12 Power 30 | . . 1 3 . 2 2 . . 1 . 6 . . . . 2 . . . . . . 2 . 1 . 1 . 2 . 4 1 . . 2 Engine 5 | . . 1 2 . . 1 . . . . 1 . . . . . . . . . . . . . . . . . . . . . . . . Core 17 | . . . 1 . 2 1 . . 1 . 3 . . . . 2 . . . . . . 1 . 1 . . . 1 . 1 1 . . 2 Reactor 8 | . . . . . . . . . . . 2 . . . . . . . . . . . 1 . . . 1 . 1 . 3 . . . . Propulsion 68 | 2 . 4 7 . 1 8 . . 2 2 7 . . . . 3 . . . . 1 . 3 . 1 . 5 . 6 . 7 5 2 1 1 Treads 4 | 2 . . . . . . . . . . . . . . . . . . . . . . . . . . . . 1 . 1 . . . . Leg 1 | . . . . . . . . . . . . . . . . . . . . . . . . . . . . . . . 1 . . . . Wheel . | . . . . . . . . . . . . . . . . . . . . . . . . . . . . . . . . . . . . Hover 1 | . . . . . . . . . . . . . . . . . . . . . 1 . . . . . . . . . . . . . . Flight 62 | . . 4 7 . 1 8 . . 2 2 7 . . . . 3 . . . . . . 3 . 1 . 5 . 5 . 5 5 2 1 1 Utility 134 | 1 2 . 5 . 1 2 1 . 6 . 8 . 1 . 1 12 . 3 . . 1 1 9 . 5 1 8 1 12 9 21 10 2 2 9 Device 61 | 1 . . 1 . . . . . 1 . 4 . . . . 5 . 1 . . 1 . 4 . 4 1 5 1 5 6 9 4 2 1 5 Storage 10 | . . . 1 . . . . . . . 1 . . . . 1 . . . . . . 1 . . . . . 1 1 3 . . . 1 Processor 19 | . . . . . . . . . 1 . . . . . 1 2 . . . . . 1 2 . . . 1 . 2 . 6 1 . . 2 Hackware 29 | . 1 . 1 . . . 1 . 4 . 1 . . . . 3 . 2 . . . . 1 . . . 2 . 3 2 1 5 . 1 1 Protection 15 | . 1 . 2 . 1 2 . . . . 2 . 1 . . 1 . . . . . . 1 . 1 . . . 1 . 2 . . . . Artifact . | . . . . . . . . . . . . . . . . . . . . . . . . . . . . . . . . . . . . Weapon 62 | 2 . 4 4 . 4 3 . . 1 . 5 2 1 1 2 4 . 1 1 . . . 2 1 1 . . . 2 1 14 1 4 1 . Energy Gun 8 | . . . . . . . . . . . 1 . 1 . . . . . . . . . . . . . . . . . 4 1 1 . . Energy Cannon 7 | . . . 1 . 1 1 . . . . . . . . 1 1 . . . . . . . . . . . . . . 2 . . . . Ballistic Gun 8 | 2 . 4 . . 1 . . . . . . . . . . . . . . . . . . . . . . . 1 . . . . . . Ballistic Cannon 12 | . . . . . . . . . 1 . 2 1 . . 1 1 . 1 . . . . . . . . . . . 1 4 . . . . Launcher 17 | . . . 3 . 1 2 . . . . 2 1 . . . 2 . . . . . . 2 . . . . . 1 . 2 . 1 . . Special Weapon 1 | . . . . . . . . . . . . . . . . . . . . . . . . . . . . . . . 1 . . . . Impact Weapon . | . . . . . . . . . . . . . . . . . . . . . . . . . . . . . . . . . . . . Slashing Weapon 5 | . . . . . 1 . . . . . . . . . . . . . 1 . . . . 1 . . . . . . 1 . 1 . . Piercing Weapon . | . . . . . . . . . . . . . . . . . . . . . . . . . . . . . . . . . . . . Special Melee Weapon 4 | . . . . . . . . . . . . . . 1 . . . . . . . . . . 1 . . . . . . . 1 1 . Unidentified Prototypes 72 | . . . 2 . 1 3 . . 2 . 13 . 1 . . 4 . . . . 3 . 2 . 1 . 2 . 10 7 19 . 2 . . Parts Lost 64 | . . 2 1 . 3 . . . . . 2 1 . 1 1 4 . 1 . . . 1 2 . . . 2 . 2 1 6 9 3 . 22 Power 8 | . . . . . 1 . . . . . 1 . . 1 . 1 . . . . . . . . . . 1 . 1 . . . . . 2 Propulsion 18 | . . 1 . . 1 . . . . . . . . . . 1 . . . . . . . . . . . . . . 1 4 3 . 7 Utility 31 | . . 1 1 . 1 . . . . . . . . . 1 1 . 1 . . . 1 2 . . . 1 . 1 1 3 5 . . 11 Weapon 7 | . . . . . . . . . . . 1 1 . . . 1 . . . . . . . . . . . . . . 2 . . . 2 Highest Loss Streak 18 | . . 1 1 . 2 . . . . . 2 1 . 1 1 2 . 1 . . . 1 1 . . . 1 . 2 1 2 5 2 . 18 To Critical Strikes . | . . . . . . . . . . . . . . . . . . . . . . . . . . . . . . . . . . . . Average Backups 12 | . 3 5 4 6 7 9 9 9 8 10 9 10 10 10 10 10 13 13 13 13 12 13 13 15 15 15 14 14 14 14 15 21 21 21 19 Power 1 | . . . . . . . 1 1 1 1 . 1 1 . . . . 1 2 2 2 2 2 2 1 1 . . . 1 2 2 2 2 1 Propulsion 1 | . . 1 . 1 . . . . . 1 . 2 2 2 2 . 1 1 2 2 2 2 2 3 3 3 3 2 2 3 3 4 1 . 1 Utility 6 | . 1 2 2 2 3 5 6 6 4 5 5 5 5 5 5 6 9 6 5 5 4 5 5 7 7 7 7 8 9 8 7 9 10 11 10 Weapon 2 | . 1 1 1 3 3 2 2 2 2 3 2 2 2 2 1 2 3 4 4 4 3 3 2 1 1 2 2 2 1 . 2 4 5 5 5 Tool/Special . | . . . . . . . . . . . . . . . . . . . . . . . . . . . . . . . . . . . . Unused Backups 36 | . . 2 1 . 1 . . . 3 . 2 . . . . 3 . 2 . . 1 . 7 . 1 . 2 . 1 2 6 . . . 2 Power 4 | . . . . . . . . . 1 . . . . . . . . . . . . . 1 . 1 . 1 . . . . . . . . Propulsion 7 | . . 1 . . . . . . . . . . . . . . . . . . . . 2 . . . 1 . 1 . 2 . . . . Utility 14 | . . 1 . . 1 . . . 2 . 2 . . . . . . 2 . . 1 . 2 . . . . . . 1 1 . . . 1 Weapon 10 | . . . 1 . . . . . . . . . . . . 3 . . . . . . 2 . . . . . . . 3 . . . 1 Tool/Special 1 | . . . . . . . . . . . . . . . . . . . . . . . . . . . . . . 1 . . . . . Average Slot Usage (%) 92 | . 80 81 87 77 92 98 91 90 92 100 99 99 100 99 96 91 89 86 88 88 88 87 90 92 91 91 93 94 99 93 86 93 97 98 90 Engine 1 | . . 7 9 . . 3 9 9 3 . . . . . . . . . . . . . . . . . . . . . . . . . . Core 3 | . . . 1 11 9 5 . . 2 6 4 6 6 1 . 1 5 4 5 5 5 5 5 5 5 5 . . 1 . 1 8 8 8 7 Reactor 1 | . . . . . . . . . . . 1 . . 4 6 3 . . . . . . . . . . 4 5 7 4 2 . . . . Flight 32 | . . 21 43 44 45 44 45 45 36 40 40 40 40 40 40 30 29 29 29 29 29 29 25 26 26 26 29 31 28 28 27 33 33 35 32 Device 10 | . 4 . 1 . 8 9 . 4 6 6 5 6 6 6 3 6 5 8 11 11 11 9 12 15 12 10 11 10 19 15 15 19 21 22 19 Storage 5 | . . . . 11 9 9 9 9 6 6 6 6 6 6 6 5 5 5 5 5 5 5 5 5 5 5 5 5 4 4 4 4 4 4 4 Processor 8 | . . . . . . . . . 5 6 6 6 6 6 6 7 11 11 11 11 11 12 14 15 15 15 15 15 14 9 13 8 8 8 8 Hackware 11 | . 9 5 3 . . . 8 9 16 20 17 13 13 13 13 18 17 13 11 11 11 11 14 15 15 15 14 15 9 16 11 12 13 12 11 Protection 3 | . 9 14 13 11 8 9 9 4 3 . 2 6 6 6 5 3 5 3 5 5 5 5 1 . 2 5 3 5 2 2 1 . . . . Ballistic Gun 1 | . 28 28 2 . 3 1 . . . . . . . . . . . . . . . . . . . . . . . . . . . . . Slashing Weapon 4 | . . . . . 2 6 9 9 5 6 6 6 6 6 6 4 5 5 5 5 5 5 5 3 5 2 4 1 3 3 2 3 4 4 3 Peak Build Rating 253 | 5 8 8 21 14 25 36 36 33 63 65 107 99 97 98 99 107 92 95 92 88 94 93 115 112 122 119 128 131 152 152 209 242 242 250 253 Average Rating 108 | 3 7 7 16 14 22 28 33 31 50 64 72 98 94 96 96 94 88 87 88 88 88 89 107 111 114 112 119 122 145 136 160 221 226 241 221 On Entrance 91 | . 5 8 7 14 14 24 34 33 33 63 65 99 94 94 98 86 88 88 88 88 88 89 93 111 112 116 109 120 129 152 145 198 242 222 245 Avg Prop Armor Cover (%) 28 | 25 28 29 . . . . . . . . . . . . . . . . . . . . . . . . . . . . . . . . . Naked Turns . | . . . . . . . . . . . . . . . . . . . . . . . . . . . . . . . . . . . . Heaviest Build 75 | 3 3 8 20 17 25 28 25 20 31 31 42 41 38 38 40 39 38 32 32 32 32 32 40 40 41 41 45 49 61 58 63 75 74 75 68 Greatest Support 91 | 3 3 8 20 20 25 25 25 25 32 33 42 42 41 41 56 41 40 40 46 49 40 40 49 41 44 41 42 57 60 60 50 91 87 82 83 Greatest Overweight (x) 13 | . . . . . . 1 . . . . 1 . . . . . . . . . . . . . . . 1 . 1 1 13 . . . 1 Average Overweight (x) . | . . . . . . . . . . . . . . . . . . . . . . . . . . . . . . . . . . . . Largest Inventory Capacity 25 | 5 5 5 10 10 10 10 10 10 10 10 10 10 10 10 10 15 15 15 15 15 15 15 15 15 15 15 15 15 15 15 25 25 25 25 25 Average Capacity 14 | 5 5 5 5 10 10 10 10 10 10 10 10 10 10 10 10 11 15 15 15 15 15 15 15 15 15 15 15 15 15 15 18 25 25 25 23 Most Carried 25 | 1 5 5 7 7 10 10 10 10 10 10 10 10 10 10 10 15 15 15 15 15 15 15 15 15 15 15 15 15 15 15 25 24 25 24 25 Average Carried 13 | . 3 4 4 6 7 9 10 10 9 10 9 10 10 9 9 10 14 14 15 15 14 15 14 14 14 14 14 14 14 14 16 21 23 22 20 Final Capacity 25 | 5 5 5 10 10 10 10 10 10 10 10 10 10 10 10 10 15 15 15 15 15 15 15 15 15 15 15 15 15 15 15 25 25 25 25 5 Final Carried 25 | 1 5 5 6 7 8 10 10 10 10 10 10 10 10 10 10 15 15 15 15 15 15 15 15 15 15 15 15 15 15 15 25 20 25 23 5 Class Distribution -------------------- 26% | Hacker-Sprinter 22% | Hacker-Ninja 16% | Hacker-Scout 11% | Sprinter 4% | Scavenger-Sprinter 4% | Ninja 3% | Hacker-Assassin Dominant Class ---------------- Mutant | -10/Materials Scavenger-Mutant | -10/Mines Scavenger-Sprinter | -9/Materials Sprinter | -9/Mines Sprinter | -8/Materials Sprinter | -8/Storage Sprinter | -8/Recycling Sprinter | -8/Scraptown Hacker-Sprinter | -6/Factory Hacker-Sprinter | -6/Waste Hacker-Sprinter | -6/Factory Hacker-Sprinter | -6/Extension Commander-Sprinter | -6/Cetus Hacker-Sprinter | -6/Archives Hacker-Sprinter | -6/Hub_04(d) Hacker-Sprinter | -5/Factory Hacker-Scout | -5/Waste Hacker-Ninja | -5/Factory Hacker-Ninja | -5/Upper Caves Hacker-Ninja | -5/Upper Caves Hacker-Ninja | -5/Zhirov Hacker-Ninja | -4/Proximity Caves Hacker-Ninja | -4/Factory Hacker-Ninja | -4/Waste Hacker-Scout | -4/Factory Hacker-Sprinter | -4/Garrison Hacker-Scout | -4/Factory Hacker-Sprinter | -4/Garrison Hacker-Ninja | -3/Research Hacker-Scout | -3/Quarantine Hacker-Ninja | -3/Protoforge Hacker-Sprinter | -2/Research Hacker-Ninja | -2/Testing Hacker-Ninja | -1/Access Hacker-Ninja | -1/Command Resources | -11 -10 -10 -9 -9 -8 -8 -8 -8 -6 -6 -6 -6 -6 -6 -6 -5 -5 -5 -5 -5 -5 -4 -4 -4 -4 -4 -4 -4 -3 -3 -3 -2 -2 -1 -1 ----------- Run | Yrd Mat Min Mat Min Mat Sto Rec Scr Fac Was Fac Ext Cet Arc Hub Fac Was Fac Upp Upp Zhi Pro Fac Was Fac Gar Fac Gar Res Qua Frg Res Tes Acc Com Matter Collected 23337 | 256 136 131 554 20 535 451 . 20 342 418 1202 902 79 71 148 913 224 89 20 . 60 10 419 . 102 200 516 707 1055 62 11754 840 503 109 489 Remotely . | . . . . . . . . . . . . . . . . . . . . . . . . . . . . . . . . . . . . Salvage Created 21173 | 107 501 223 1841 . 2803 1147 . . 663 997 1747 871 91 291 331 975 603 63 . . 143 . 711 . 138 218 807 326 912 62 2507 759 723 236 377 Parts 947 | 7 25 20 104 . 145 67 . . 23 21 77 55 5 15 9 36 3 4 . . 3 . 53 . 6 17 29 22 22 1 85 40 29 12 12 Haulers Intercepted 42 | . 1 . 5 . 4 5 . . 2 . 6 . . . 1 3 . . . . . . 2 . . . 4 . 6 . . 2 . 1 . Recyclers Shooed 5 | . 1 . 1 . 1 . . . . . . . . . . 1 . . . . . . 1 . . . . . . . . . . . . Parts Field Recycled . | . . . . . . . . . . . . . . . . . . . . . . . . . . . . . . . . . . . . Retrieved Matter . | . . . . . . . . . . . . . . . . . . . . . . . . . . . . . . . . . . . . Parts Self-Destructed 3 | . . . . . . . . . . . . . . . . . . . . . 3 . . . . . . . . . . . . . . Prevented . | . . . . . . . . . . . . . . . . . . . . . . . . . . . . . . . . . . . . Parts Restored 8 | . . . . . . . . . . . . . . . . . . . . . . . . . . . . . . . 8 . . . . Faulty 8 | . . . . . . . . . . . . . . . . . . . . . . . . . . . . . . . 8 . . . . Kills | -11 -10 -10 -9 -9 -8 -8 -8 -8 -6 -6 -6 -6 -6 -6 -6 -5 -5 -5 -5 -5 -5 -4 -4 -4 -4 -4 -4 -4 -3 -3 -3 -2 -2 -1 -1 ------- Run | Yrd Mat Min Mat Min Mat Sto Rec Scr Fac Was Fac Ext Cet Arc Hub Fac Was Fac Upp Upp Zhi Pro Fac Was Fac Gar Fac Gar Res Qua Frg Res Tes Acc Com Combat Hostiles Destroyed 298 | . 9 10 24 . 38 14 . . 4 4 21 12 1 3 5 11 3 . . . . . 19 . . 10 8 9 3 1 64 10 9 . 6 Melee 21 | . . . . . 2 . . . . . 2 1 . . 1 1 . . . . . . . . . . 1 1 1 1 9 1 . . . Guns 26 | . 9 10 . . . 3 . . . . . . . . . . . . . . . . . . . . . . . . 1 1 2 . . Cannons 73 | . . . . . 2 3 . . 2 4 9 8 1 3 . . . . . . . . . . . . . 5 . . 35 1 . . . AOE 143 | . . . 24 . 24 8 . . 1 . 8 3 . . 4 10 3 . . . . . 19 . . 10 7 3 2 . 12 4 . . 1 Classes Destroyed 27 | 2 3 2 3 . 5 . . . . 1 1 1 . . . . . . . . . . . . . . . 2 . . 7 . . . . Worker 16 | . . . . . 7 . . . . . 1 2 . . 1 3 . . . . . . 1 . . . . . . . . 1 . . . Builder 27 | . . . 4 . 5 1 . . . . 3 4 . . . 2 . . . . . . 2 . . . 1 . 1 . . 2 2 . . Tunneler 6 | 1 . . 2 . . . . . 1 . . 1 . . . . . . . . . . 1 . . . . . . . . . . . . Hauler 42 | . 1 . 5 . 4 5 . . 2 . 6 . . . 1 3 . . . . . . 2 . . . 4 . 6 . . 2 . 1 . Recycler 15 | 1 . . 4 . . 2 . . . . 2 1 . . . 3 . . . . . . 1 . . . . . 1 . . . . . . Mechanic 4 | . . . . . 1 1 . . 1 . . . . . . . . . . . . . . . . . . . . . 1 . . . . Operator 16 | . 2 . 1 . 2 . . . . . 1 1 . 3 . 1 . . . . . . . . . . 1 . . . 2 . 1 1 . Drone 7 | . . . . . . . . . . . . . . . . . . . . . . . . . . . . . . . 6 1 . . . Watcher 52 | . . . 4 . 4 1 . . 4 . 3 1 1 . 2 . . 2 . . . . 4 . 4 . 5 . 2 . 4 2 3 2 4 Swarmer 54 | . . 8 6 . . 3 . . . . 1 . . . . 4 . . . . . . 15 . . 8 7 . . . 2 . . . . Cutter 11 | . . . . . . . . . . . 2 . . . . . . . . . . . 3 . . . . . . . . 6 . . . Grunt 102 | . 9 . 11 . 25 5 . . 1 . 14 8 . . 2 5 . . . . . . . . . 2 . 3 1 . 11 . 5 . . Brawler 4 | . . . . . 2 . . . . . 1 . . . . . . . . . . . . . . . . . . . . . 1 . . Duelist 4 | . . . 1 . 1 . . . . . 1 . . . . . . . . . . . . . . . . . . . 1 . . . . Protector 6 | . . . . . 2 . . . . . 1 . . . . . . . . . . . . . . . . 1 . . 2 . . . . Researcher 4 | . . . . . . . . . . . . . . . . . . . . . . . . . . . . . . . 4 . . . . Sentry 50 | . . 2 6 . 6 6 . . 2 . 1 2 . 3 2 . . . . . . . 1 . . . 1 . . . 14 3 . . 1 Demolisher 1 | . . . . . . . . . . . . . . . . . . . . . . . . . . . . 1 . . . . . . . Specialist 1 | . . . . . . . . . . . . . . . . . . . . . . . . . . . . . . . 1 . . . . Hunter 10 | . . . . . 2 . . . 1 . . 1 . . 1 2 . . . . . . . . . . . 1 2 . . . . . . Programmer 8 | . . . . . . . . . . . . . . . . . . . . . . . . . . . . 3 . . 4 . . . 1 Behemoth 1 | . . . . . . . . . . . . 1 . . . . . . . . . . . . . . . . . . . . . . . Compactor 7 | . . . . . . . . . . 4 . . . . . . 3 . . . . . . . . . . . . . . . . . . Cetus Guard 1 | . . . . . . . . . . . . . 1 . . . . . . . . . . . . . . . . . . . . . . Quarantine Guard 1 | . . . . . . . . . . . . . . . . . . . . . . . . . . . . . . 1 . . . . . M Guard 2 | . . . . . . . . . . . . . . . . . . . . . . . . . . . . . . . . . . . 2 Hotshot 3 | . . . . . . . . . . . . . . . . . . . . . . . . . . . . . . . 3 . . . . Decapitator 9 | . . . . . . . . . . . . . . . . . . . . . . . . . . . . . . . 9 . . . . Immortal 4 | . . . . . . . . . . . . . . . . . . . . . . . . . . . . . . . 4 . . . . Combat Programmer 2 | . . . . . . . . . . . . . . . . . . . . . . . . . . . . . . . . . . . 2 Striker 4 | . . . . . . . . . . . . . . . . . . . . . . . . . . . . . . . 2 . 2 . . Executioner 1 | . . . . . . . . . . . . . . . . . . . . . . . . . . . . . . . 1 . . . . Alpha 7 3 | . . . . . . . . . . . . . . . . . . . . . . . . . . . . . . . 2 . 1 . . V-Series 2 | . . . . . . . . . . . . . . . . . . . . . . . . . . . . . . . 2 . . . . Best Kill Streak 14 | 2 2 3 8 . 14 8 . . 3 2 11 10 1 6 6 12 3 2 . . . . 5 . 1 4 4 4 4 1 6 5 6 3 3 Combat Bots Only 9 | . 2 3 4 . 7 7 . . 1 2 8 3 1 3 4 9 3 . . . . . 5 . . 4 4 4 2 1 6 5 6 . 3 Max Kills in Single Turn 7 | 1 1 1 5 . 3 3 . . 2 1 4 7 1 1 2 5 3 1 . . . . 4 . 1 2 3 1 2 1 4 3 1 1 1 Gunslinging . | . . . . . . . . . . . . . . . . . . . . . . . . . . . . . . . . . . . . Exploded 4 | . . . 4 . 3 3 . . 1 . 3 2 . . 2 4 3 . . . . . 4 . . 2 3 1 2 . 4 3 . . 1 Melee 1 | . . . . . 1 . . . . . 1 1 . . 1 1 . . . . . . . . . . 1 1 1 1 1 1 . . . Uniques/NPCs Destroyed . | . . . . . . . . . . . . . . . . . . . . . . . . . . . . . . . . . . . . Combat | -11 -10 -10 -9 -9 -8 -8 -8 -8 -6 -6 -6 -6 -6 -6 -6 -5 -5 -5 -5 -5 -5 -4 -4 -4 -4 -4 -4 -4 -3 -3 -3 -2 -2 -1 -1 -------- Run | Yrd Mat Min Mat Min Mat Sto Rec Scr Fac Was Fac Ext Cet Arc Hub Fac Was Fac Upp Upp Zhi Pro Fac Was Fac Gar Fac Gar Res Qua Frg Res Tes Acc Com Hostile Shots Fired 1266 | . 45 50 36 1 75 55 . . 64 . 93 140 2 5 131 54 . 1 3 . . 11 28 . 5 29 15 35 6 14 89 105 35 . 139 Missed 582 | . 16 20 20 . 48 25 . . 35 . 48 57 2 1 60 25 . . . . . 8 13 . 2 15 8 17 3 6 40 49 16 . 48 Intercepted 5 | . . . . . . . . . . . . . . . . . . . . . . . . . . . . . . . . . . . 5 Deflected 8 | . . . . . . . . . . . . . . . . . . . . . . . . . . . . . . . . 1 1 . 6 Hits 684 | . 29 30 16 1 27 30 . . 29 . 45 83 . 4 71 29 . 1 3 . . 3 15 . 3 14 7 18 3 8 49 56 19 . 91 Melee 8 | . . . . . . . . . . . . . . . 3 . . . . . . . . . 1 . . . . . . 4 . . . Projectile 676 | . 29 30 16 1 27 30 . . 29 . 45 83 . 4 68 29 . 1 3 . . 3 15 . 2 14 7 18 3 8 49 52 19 . 91 AOE 11 | . . . . . . . . . . . 1 . . . 3 . . . . . . . . . . . . . . . . 2 . . 5 Critical Strikes 34 | . . 1 1 . 1 1 . . . . 2 3 . . 1 2 . . . . . . 2 . . . . . . . 3 10 1 . 6 Actively Blocked 14 | . . . . . 1 . . . . . . . . . . . . . . . . . . . . . . . . . 2 4 1 . 6 Part Disruptions 7 | . . . . . . . . . . . . . . . . . . . . . . . . . . . . . . . . . . . 7 Damage Taken 13823 | . 351 312 274 10 500 449 . . 229 . 818 1011 . 101 985 592 . 26 78 . . 65 621 . 67 201 168 446 54 180 1222 1361 504 . 3198 Core 3572 | . 60 68 42 10 63 99 . . 102 . 147 131 . 23 344 205 . 26 . . . 44 294 . 45 27 23 103 23 85 361 233 36 . 978 Absorbed by Shields 191 | . . . . . . . . . . . 9 182 . . . . . . . . . . . . . . . . . . . . . . . Redirected to Shielding 1136 | . 10 12 38 . 130 74 . . . . 141 . . . . 73 . . 50 . . . 91 . . 66 64 78 15 33 261 . . . . Regen/Repaired (Parts) 753 | . . . 37 . 26 86 . 105 . . 46 . . . . 211 . . . . . . 35 . . . 130 . 10 . . . 67 . . Core Remaining (%) 62 | 100 . 48 . 87 . . . 70 . . . . . . 12 . . . . . . 72 . . . . . 57 . . 59 . 81 . 38 Volleys Fired 996 | 3 58 29 103 . 68 32 . . 30 14 72 52 7 8 11 12 3 . . . . . 14 . . 10 6 52 4 . 269 65 34 5 35 Largest 2 | 2 2 2 2 . 2 2 . . 1 1 1 1 1 1 1 1 1 . . . . . 1 . . 1 1 1 1 . 1 1 1 1 1 Hottest 140 | 40 40 43 68 . 93 93 . . 56 56 56 56 48 48 49 49 45 . . . . . 43 . . 43 56 56 43 . 140 140 75 140 140 Shots Fired 1102 | 6 116 58 104 . 73 43 . . 30 14 72 52 7 8 11 12 3 . . . . . 14 . . 10 6 52 4 . 267 65 34 5 36 Gun 398 | 6 116 58 32 . 5 14 . . . . . . . . . . . . . . . . . . . . . . . . 75 31 34 . 27 Cannon 472 | . . . 26 . 5 20 . . 21 14 57 50 7 8 8 3 . . . . . . . . . . 2 43 . . 168 30 . 5 5 Launcher 216 | . . . 46 . 63 9 . . 9 . 15 2 . . 3 9 3 . . . . . 14 . . 10 4 9 4 . 8 4 . . 4 Special 16 | . . . . . . . . . . . . . . . . . . . . . . . . . . . . . . . 16 . . . . Kinetic 605 | 6 116 58 32 . 5 14 . . 21 14 57 50 7 8 8 3 . . . . . . . . . . 2 43 . . 161 . . . . Thermal 98 | . . . 26 . 5 20 . . . . . . . . . . . . . . . . . . . . . . . . 7 30 . 5 5 Explosive 82 | . . . . . . . . . . . 9 2 . . 3 8 3 . . . . . 14 . . 10 4 9 4 . 8 4 . . 4 Electromagnetic 268 | . . . 46 . 63 9 . . 9 . 6 . . . . 1 . . . . . . . . . . . . . . 75 23 23 . 13 Entropic 33 | . . . . . . . . . . . . . . . . . . . . . . . . . . . . . . . . 8 11 . 14 Robot Hit Streak 26 | 4 7 24 10 . 5 9 . . 2 5 8 6 4 5 2 8 5 . . . . . 13 . . 5 9 26 16 . 23 7 7 . 20 Robot Miss Streak 11 | . 5 5 3 . 3 4 . . 2 1 3 4 1 3 1 1 1 . . . . . . . . 1 . 2 . . 3 11 2 . 1 Penetration Max 2 | . . . . . . . . . 1 2 2 2 . 1 2 . . . . . . . . . . . 1 2 . . 1 . 2 . . Secondary Targets . | . . . . . . . . . . . . . . . . . . . . . . . . . . . . . . . . . . . . Capacitor 29 | . . . . . . . . . . . . . . . . . . . . . . . . . . . . . . . . 8 15 . 6 Shots Hit Robots 943 | 4 70 39 47 . 36 39 . . 17 11 67 36 6 14 17 29 3 2 . . 7 . 27 . 8 5 37 48 26 6 215 30 33 5 59 Core Hits 678 | 3 31 17 54 . 90 29 . . 13 4 59 38 3 6 14 30 15 2 . . . . 36 . 5 20 20 19 21 4 91 17 12 2 23 Critical Kills 42 | . 2 1 1 . . . . . 2 4 9 7 1 3 . . . . . . . . . . . . . 5 . . . 1 3 . 3 Critical Parts Destroyed 62 | . . . . . . . . . 8 3 22 16 1 1 1 . . . . . . . . . . . 1 9 . . . . . . . Critical Strikes 170 | . 2 1 1 . 1 . . . 12 12 34 26 2 6 4 2 . . . . . . 1 . 1 . 3 24 4 2 24 1 4 . 3 Meltdown 7 | . . . . . . . . . . . . . . . . . . . . . . . . . . . . . . . . 1 3 . 3 Destroy 117 | . 2 1 1 . . . . . 11 12 32 25 2 5 2 . . . . . . . . . . . 1 23 . . . . . . . Blast 22 | . . . . . . . . . . . . . . . . . . . . . . . . . . . . . . . 22 . . . . Corrupt 1 | . . . . . . . . . . . . . . . . . . . . . . . . . . . . . . . . . 1 . . Sever 23 | . . . . . 1 . . . 1 . 2 1 . 1 2 2 . . . . . . 1 . 1 . 2 1 4 2 2 . . . . Melee Attacks 757 | . . . . . 18 29 . . 36 . 72 15 1 9 21 66 1 6 2 5 7 . 61 . 38 9 58 21 60 19 77 45 34 14 33 Impact . | . . . . . . . . . . . . . . . . . . . . . . . . . . . . . . . . . . . . Slashing 742 | . . . . . 18 29 . . 36 . 72 15 1 6 21 64 1 6 2 5 7 . 61 . 37 9 58 15 59 19 77 45 33 13 33 Piercing . | . . . . . . . . . . . . . . . . . . . . . . . . . . . . . . . . . . . . Sneak Attacks 96 | . . . . . 3 6 . . 4 . 6 3 . 5 2 11 . . . . . . 6 . . . 8 6 9 . 10 9 4 3 1 Combat Hostiles 3 | . . . . . . . . . . . . . . . 1 . . . . . . . . . . . . . . . . 2 . . . Follow-up Attacks . | . . . . . . . . . . . . . . . . . . . . . . . . . . . . . . . . . . . . Damage Inflicted 68919 | 35 552 358 2505 . 5413 1891 . . 1216 313 4787 2542 138 538 1342 3093 1580 91 . . 512 . 2871 . 395 1092 2698 1942 2094 246 20165 4110 2189 625 3586 Guns 4478 | 35 548 358 149 . 35 138 . . . . . . . . . . . . . . . . . . . . . . . . 1199 344 1066 . 606 Cannons 17172 | . . . 330 . 112 359 . . 292 313 955 707 87 116 87 . . . . . . . . . . . 61 747 . . 12596 169 . . 241 Explosions 26330 | . . . 2026 . 4784 577 . . 201 . 2404 1407 . . 574 1847 1580 . . . . . 1935 . . 1092 574 1049 659 . 2929 1924 . . 768 Melee 20935 | . . . . . 482 817 . . 723 . 1428 428 51 422 681 1246 . 91 . . 512 . 936 . 395 . 2063 146 1435 246 3441 1673 1123 625 1971 Ramming 4 | . 4 . . . . . . . . . . . . . . . . . . . . . . . . . . . . . . . . . . Kinetic 17224 | 35 548 358 149 . 35 138 . . 292 313 955 707 87 116 87 . . . . . . . . . . . 61 747 . . 12596 . . . . Thermal 2800 | . . . 447 . 664 412 . . . . 638 47 . . . 128 . . . . . . . . . . . . . . 54 169 . . 241 Explosive 17210 | . . . . . . . . . 49 . 1134 1360 . . 574 1637 1580 . . . . . 1935 . . 1092 574 1049 659 . 2875 1924 . . 768 Electromagnetic 10020 | . . . 1909 . 4232 524 . . 152 . 632 . . . . 82 . . . . . . . . . . . . . . 1199 344 723 . 223 Impact . | . . . . . . . . . . . . . . . . . . . . . . . . . . . . . . . . . . . . Slashing 20935 | . . . . . 482 817 . . 723 . 1428 428 51 422 681 1246 . 91 . . 512 . 936 . 395 . 2063 146 1435 246 3441 1673 1123 625 1971 Piercing . | . . . . . . . . . . . . . . . . . . . . . . . . . . . . . . . . . . . . Entropic 726 | . . . . . . . . . . . . . . . . . . . . . . . . . . . . . . . . . 343 . 383 Highest Corruption 13 | . . . . . 1 1 1 . . . 1 . . . 1 . . . . . . . 3 13 13 . 2 1 1 1 6 1 1 . 10 Average Corruption 1 | . . . . . 1 1 1 . . . 1 . . . 1 . . . . . . . 3 4 7 . 1 1 1 1 2 1 1 . 5 Corruption Purged 20 | . . . . . . . . . . . 1 . . . . . . . . . . . . . 13 . 2 1 . 1 . . . . 2 Corruption Blocked 6 | . . . . . . . . . . . . . . . . . . . . . . . . . . . . . . . 4 . . . 2 Effects 77 | . . . . . 1 3 2 . . . 2 . . . . . . . . . . . 13 . 6 . 1 1 3 . 30 6 4 . 5 Message Errors 21 | . . . . . 1 2 1 . . . 1 . . . . . . . . . . . 5 . 2 . . . . . 8 1 . . . Matter Fused 20 | . . . . . . . . . . . . . . . . . . . . . . . 4 . 1 . . 1 1 . 11 1 . . 1 Heat Flow Errors 10 | . . . . . . . . . . . . . . . . . . . . . . . . . 2 . . . . . 2 2 3 . 1 Energy Discharges 12 | . . . . . . . 1 . . . . . . . . . . . . . . . 3 . . . 1 . 1 . 3 2 . . 1 Parts Rejected 2 | . . . . . . 1 . . . . . . . . . . . . . . . . . . . . . . . . 1 . . . . Data Loss (minor) 5 | . . . . . . . . . . . 1 . . . . . . . . . . . 1 . . . . . 1 . 2 . . . . Data Loss (major) 3 | . . . . . . . . . . . . . . . . . . . . . . . . . 1 . . . . . 1 . 1 . . Misfires 1 | . . . . . . . . . . . . . . . . . . . . . . . . . . . . . . . . . . . 1 Alerts 1 | . . . . . . . . . . . . . . . . . . . . . . . . . . . . . . . . . . . 1 Weapon Failures 2 | . . . . . . . . . . . . . . . . . . . . . . . . . . . . . . . 2 . . . . Overload Shots . | . . . . . . . . . . . . . . . . . . . . . . . . . . . . . . . . . . . . Overflow Damage 6545 | . . . 63 . 57 152 . . 36 . 144 42 . 109 18 224 . . . . 244 . 373 . 45 36 270 12 252 . 2659 856 536 255 162 Projectiles 1506 | . . . 18 . . . . . . . . . . . . . . . . . . . . . . . . . . . 1457 31 . . . Explosions 1170 | . . . 45 . 57 14 . . 7 . 101 . . . 17 30 . . . . . . 241 . . 36 3 12 . . 77 461 . . 69 Melee 3869 | . . . . . . 138 . . 29 . 43 42 . 109 1 194 . . . . 244 . 132 . 45 . 267 . 252 . 1125 364 536 255 93 Knockbacks 47 | . . . . . . . . . . . 3 6 . . . . . . . . . . . . . . . . . . 38 . . . . Impact . | . . . . . . . . . . . . . . . . . . . . . . . . . . . . . . . . . . . . Kinetic 45 | . . . . . . . . . . . 3 6 . . . . . . . . . . . . . . . . . . 36 . . . . Secondary 2 | . . . . . . . . . . . . . . . . . . . . . . . . . . . . . . . 2 . . . . Self-Inflicted Damage 380 | . 1 . 86 . 87 . . . . . 30 60 . . . . . . . . . . . . . . . . . . . 116 . . . Shots 12 | . . . 4 . 5 . . . . . 1 1 . . . . . . . . . . . . . . . . . . . 1 . . . Rammed 2 | . 2 . . . . . . . . . . . . . . . . . . . . . . . . . . . . . . . . . . Targets Rammed 2 | . 2 . . . . . . . . . . . . . . . . . . . . . . . . . . . . . . . . . . Kicked . | . . . . . . . . . . . . . . . . . . . . . . . . . . . . . . . . . . . . Crushed . | . . . . . . . . . . . . . . . . . . . . . . . . . . . . . . . . . . . . Highest Temperature 612 | . 4 23 300 1 133 263 . . 37 49 86 376 12 9 612 34 10 4 14 7 . . 16 . 219 . 192 16 1 198 95 280 261 84 275 Average Temperature 46 | . 1 6 66 1 23 50 . . 14 23 18 83 4 4 128 5 2 3 9 7 . . 9 . 103 . 65 8 1 34 26 95 62 31 58 Received Heat Transfer 2650 | . 195 72 87 6 144 189 . . 36 . 237 579 . 18 129 120 . . 12 . . 9 45 . 9 12 27 36 9 33 126 241 54 . 225 Effects 12 | . . . 1 . . 2 . . . . . 3 . . 6 . . . . . . . . . . . . . . . . . . . . Shutdowns 3 | . . . . . . . . . . . . 1 . . 2 . . . . . . . . . . . . . . . . . . . . Energy Bleed 1 | . . . . . . . . . . . . . . . 1 . . . . . . . . . . . . . . . . . . . . Interference 6 | . . . 1 . . 2 . . . . . 1 . . 2 . . . . . . . . . . . . . . . . . . . . Matter Decay 1 | . . . . . . . . . . . . 1 . . . . . . . . . . . . . . . . . . . . . . . Damage (core) 1 | . . . . . . . . . . . . . . . 1 . . . . . . . . . . . . . . . . . . . . Siege Activations . | . . . . . . . . . . . . . . . . . . . . . . . . . . . . . . . . . . . . Martial Activations . | . . . . . . . . . . . . . . . . . . . . . . . . . . . . . . . . . . . . Shielding Activations . | . . . . . . . . . . . . . . . . . . . . . . . . . . . . . . . . . . . . Robots Disrupted 3 | . . . . . 2 . . . . . . . . . . . . . . . . . . . . . . . . . 1 . . . . Combat Hostiles 2 | . . . . . 1 . . . . . . . . . . . . . . . . . . . . . . . . . 1 . . . . Robots Corrupted 29 | . . . . . 11 . . . 1 . 2 . . . . . . . . . . . . . . . . . . . 7 2 4 . 2 Combat Hostiles 28 | . . . . . 10 . . . 1 . 2 . . . . . . . . . . . . . . . . . . . 7 2 4 . 2 Parts Fried 66 | . . . 11 . 29 6 . . 2 . 2 . . . . . . . . . . . . . . . . . . . 9 2 5 . . Impact Corruptions . | . . . . . . . . . . . . . . . . . . . . . . . . . . . . . . . . . . . . Robots Melted 7 | . . . . . . . . . . . . . . . . . . . . . . . . . . . . . . . . 1 3 . 3 Combat Hostiles 7 | . . . . . . . . . . . . . . . . . . . . . . . . . . . . . . . . 1 3 . 3 Parts Melted 8 | . . . . . 1 . . . . . 1 . . . . . . . . . . . . . . . . . . . . 2 . . 4 Heat Transferred 3279 | . . . 792 . 1009 692 . . . . 450 50 . . . 100 . . . . . . . . . . . . . . 50 100 . . 36 Parts Sabotaged . | . . . . . . . . . . . . . . . . . . . . . . . . . . . . . . . . . . . . Parts Stolen . | . . . . . . . . . . . . . . . . . . . . . . . . . . . . . . . . . . . . Parts Stripped . | . . . . . . . . . . . . . . . . . . . . . . . . . . . . . . . . . . . . Power Chain Reactions 31 | . . . 9 . 15 3 . . . . 2 1 . . . . . . . . . . . . . . . . . . 1 . . . . Alert | -11 -10 -10 -9 -9 -8 -8 -8 -8 -6 -6 -6 -6 -6 -6 -6 -5 -5 -5 -5 -5 -5 -4 -4 -4 -4 -4 -4 -4 -3 -3 -3 -2 -2 -1 -1 ------- Run | Yrd Mat Min Mat Min Mat Sto Rec Scr Fac Was Fac Ext Cet Arc Hub Fac Was Fac Upp Upp Zhi Pro Fac Was Fac Gar Fac Gar Res Qua Frg Res Tes Acc Com Maximum Alert Level 5 | . . 1 3 1 5 4 2 . 2 . 4 4 3 1 2 2 1 . . . . . 2 . . 2 2 2 2 1 5 4 3 2 2 Low Security (%) 22 | 100 100 80 6 . 6 . . . 28 100 21 . . . 13 33 36 100 . . . . 20 100 100 16 68 25 . 16 11 . . . . Level 1 24 | . . 19 28 100 12 . 60 . 45 . 12 . . 100 78 19 63 . . . . . 55 . . 41 20 58 82 83 4 . . 54 53 Level 2 18 | . . . 28 . 1 . 39 . 25 . 29 14 . . 8 47 . . . . . . 24 . . 42 11 16 17 . 10 25 41 45 46 Level 3 13 | . . . 36 . 12 26 . . . . 24 27 100 . . . . . . . . . . . . . . . . . 22 29 58 . . Level 4 16 | . . . . . 39 73 . . . . 12 58 . . . . . . . . . . . . . . . . . . 39 45 . . . Level 5 3 | . . . . . 27 . . . . . . . . . . . . . . . . . . . . . . . . . 11 . . . . High Security . | . . . . . . . . . . . . . . . . . . . . . . . . . . . . . . . . . . . . Max Security . | . . . . . . . . . . . . . . . . . . . . . . . . . . . . . . . . . . . . Peak Influence 1946 | 10 133 234 811 314 1848 1317 491 . 508 174 1119 1410 854 367 564 593 222 179 . . . . 473 105 98 598 549 513 424 355 1946 1441 804 539 465 Initial 1090 | . . 44 71 294 124 766 470 . . 174 . 539 773 328 102 275 193 148 . . . . 34 105 73 46 313 58 288 179 193 1090 612 464 161 Average 599 | 3 71 159 528 296 1165 1156 366 . 271 55 583 1092 820 334 298 362 203 119 . . . . 290 105 53 351 191 270 340 282 1040 1014 711 393 393 Influence Increases 19979 | 10 308 320 1057 45 2238 797 31 . 824 9 1825 1387 277 134 582 842 59 55 . . 10 75 1123 . 264 552 602 605 407 382 2573 1332 573 197 484 Destroy 0b10 Robot/C 6640 | . 180 200 480 . 720 280 . . 80 . 640 660 160 80 100 220 . . . . . . 400 . . 200 160 240 60 20 1280 180 180 . 120 Destroy 0b10 Robot/NC 990 | 10 15 . 100 . 125 50 . . 40 . 85 65 10 15 20 60 . 10 . . 10 . 55 . 20 . 55 5 50 . 80 40 30 20 20 Destroy Leader 1314 | . 52 30 128 . 186 102 . . 52 . 158 84 . . 36 36 . 4 . . . . 62 . 8 30 48 30 24 10 138 56 16 6 18 Allied During Kill 630 | . . . . . . . . . . . 85 377 93 5 . . . . . . . . . . . . . 58 . . 12 . . . . Trap Triggered on 0b10 130 | . . . . . . . . . . . . . . . . . . . . . . . . . . . 50 . . 20 60 . . . . Successful Hack 1435 | . 31 . 29 . 39 40 31 . 23 . 53 34 6 . 33 32 . 35 . . . . 164 . 85 . 59 12 92 121 34 171 161 96 54 Select Force Hacks 130 | . . . . . 30 . . . . . . . . . 100 . . . . . . . . . . . . . . . . . . . . Disable Machine 1365 | . . . 60 . 135 30 . . 75 . 150 15 . 30 15 90 . . . . . . 30 . . 60 15 . 15 75 390 120 45 15 . Anti-Garrison Action 500 | . . . . . 150 . . . 200 . . . . . . . . . . . . . . . . 50 . 50 . . . . . . 50 Destroy Structure 2470 | . . . 20 . 43 25 . . 54 9 84 32 8 4 53 254 44 6 . . . . 222 . 46 167 140 135 76 16 84 660 51 45 192 Partial Spotted 1095 | . . . 30 15 135 60 . . 120 . 45 45 . . 60 60 15 . . . . . 30 . 75 45 30 15 45 30 105 45 45 15 30 Lose Combat Pursuer 3180 | . 30 90 210 30 675 210 . . 180 . 525 75 . . 165 90 . . . . . 75 60 . 30 . 45 60 45 90 390 60 45 . . Miscellaneous 100 | . . . . . . . . . . . . . . . . . . . . . . . 100 . . . . . . . . . . . . Influence Decreases 19714 | 10 193 251 485 482 743 1404 991 247 326 507 723 1107 839 662 310 853 400 214 53 . 10 20 877 196 303 20 1117 175 601 356 979 2181 888 719 472 Entered New Map 8610 | . . 71 113 462 195 1048 737 247 . 324 . 563 609 492 190 289 360 64 20 . . . 21 196 32 20 285 25 225 140 152 849 478 311 92 Time Decay 7261 | 10 193 150 362 10 368 356 254 . 296 40 473 294 110 100 110 514 40 140 33 . 10 20 486 . 251 . 362 . 356 206 747 342 230 238 160 Lost Part 630 | . . 20 10 . 30 . . . . . 20 10 . 10 10 40 . 10 . . . . 20 . . . 20 . 20 10 60 90 30 . 220 Lost Ally 1113 | . . 10 . 10 . . . . 30 143 230 240 120 60 . 10 . . . . . . 50 . 20 . . 150 . . 20 . . 20 . Purge Threat 2100 | . . . . . 150 . . . . . . . . . . . . . . . . . 300 . . . 450 . . . . 900 150 150 . Squads Dispatched 203 | . 3 . 3 . 13 8 . . 13 . 22 5 . . 8 20 . 5 . . . . 15 . 15 . 12 . 14 3 15 20 4 3 2 Investigation 91 | . 1 . 1 . 5 2 . . 8 . 7 3 . . 5 11 . 5 . . . . 6 . 10 . 6 . 9 . 8 3 . 1 . Extermination 32 | . . . . . . . . . 2 . 6 . . . 1 4 . . . . . . 5 . 2 . 2 . 1 . 1 3 2 2 1 Reinforcement 53 | . 2 . 1 . 4 2 . . 2 . 6 2 . . 2 3 . . . . . . 4 . 3 . 3 . 4 1 6 7 . . 1 Assault 22 | . . . 1 . 3 4 . . . . . . . . . 2 . . . . . . . . . . 1 . . 2 . 7 2 . . Garrison 5 | . . . . . 1 . . . 1 . 3 . . . . . . . . . . . . . . . . . . . . . . . . Intercept . | . . . . . . . . . . . . . . . . . . . . . . . . . . . . . . . . . . . . Searches Triggered . | . . . . . . . . . . . . . . . . . . . . . . . . . . . . . . . . . . . . Unchained Authorized 1 | . . . . . . . . . . . . . . . . . . . . . . . . . . . . . . . . . . 1 . Construction Impeded 7 | . . . . . 3 1 . . 1 . 2 . . . . . . . . . . . . . . . . . . . . . . . . Haulers Reinforced 8 | . . . . . . . . . . . 1 . . . 1 1 . . . . . . 1 . . . 2 . 2 . . . . . . Active Scanning Responses . | . . . . . . . . . . . . . . . . . . . . . . . . . . . . . . . . . . . . Cargo Convoy Interrupts 1 | . . . . . . . . . . . 1 . . . . . . . . . . . . . . . . . . . . . . . . Stealth | -11 -10 -10 -9 -9 -8 -8 -8 -8 -6 -6 -6 -6 -6 -6 -6 -5 -5 -5 -5 -5 -5 -4 -4 -4 -4 -4 -4 -4 -3 -3 -3 -2 -2 -1 -1 --------- Run | Yrd Mat Min Mat Min Mat Sto Rec Scr Fac Was Fac Ext Cet Arc Hub Fac Was Fac Upp Upp Zhi Pro Fac Was Fac Gar Fac Gar Res Qua Frg Res Tes Acc Com Distress Signals 58 | . . . 4 . 8 2 . . . . 4 2 2 . 3 2 . . . . . . 2 . . 1 2 . 11 1 8 4 1 1 . Communications Jammed 2 | . . . . . . . . . . . . . . . . . . . . . . . . . . . . . . . 2 . . . . Distress Signals 2 | . . . . . . . . . . . . . . . . . . . . . . . . . . . . . . . 2 . . . . Times Spotted 784 | . 21 17 39 3 85 28 . . 24 7 72 39 8 3 45 47 6 6 1 . . 6 28 3 16 19 19 16 8 13 103 56 18 3 25 Peak Tracking Total 25 | . 3 12 8 3 9 9 . . 5 5 13 12 5 1 25 8 6 3 1 . . 5 8 3 5 7 5 5 5 4 10 14 4 6 11 Tactical Retreats 143 | . 2 4 8 1 19 6 . . 6 1 19 3 . . 3 11 . 2 . . . 2 5 . 2 5 2 2 2 3 17 12 4 1 1 ECM-based Alert Blocks 102 | . . . . . . . . . . . . . . . . 25 . 4 . . . . 7 . 3 14 . . . . 3 33 5 5 3 Traps | -11 -10 -10 -9 -9 -8 -8 -8 -8 -6 -6 -6 -6 -6 -6 -6 -5 -5 -5 -5 -5 -5 -4 -4 -4 -4 -4 -4 -4 -3 -3 -3 -2 -2 -1 -1 ------- Run | Yrd Mat Min Mat Min Mat Sto Rec Scr Fac Was Fac Ext Cet Arc Hub Fac Was Fac Upp Upp Zhi Pro Fac Was Fac Gar Fac Gar Res Qua Frg Res Tes Acc Com Traps Triggered 64 | . . . 5 . 2 . . . 5 . 5 5 . . 3 2 . . . . . . 3 . 4 1 . . 1 . 19 1 1 . 7 Indirectly 10 | . . . 4 . 2 . . . 4 . . . . . . . . . . . . . . . . . . . . . . . . . . Trap Hack Attempts 52 | . . . . . . . . . . . . . . . . . . . . . . . . . . . 19 . 33 . . . . . . Triggered . | . . . . . . . . . . . . . . . . . . . . . . . . . . . . . . . . . . . . Disarmed 5 | . . . . . . . . . . . . . . . . . . 4 . . . . . . . . . . 1 . . . . . . Reprogrammed 22 | . . . . . . . . . . . . . . . . . . . . . . . . . . . 14 . 8 . . . . . . Reused 13 | . . . . . . . . . . . . . . . . . . . . . . . . . . . 5 . . 2 6 . . . . Traps Extracted 9 | . . . . . . . . . . . . . . . . . . . . . . . . . . . . . 8 1 . . . . . Installed 9 | . . . . . . . . . . . . . . . . . . . . . . . . . . . . . . 3 6 . . . . Triggered 13 | . . . . . . . . . . . . . . . . . . . . . . . . . . . 5 . . 2 6 . . . . Most Traps Carried 8 | . . . . . . . . . . . . . . . . . . . . . . . . . . . . . 7 8 6 . . . . Machines | -11 -10 -10 -9 -9 -8 -8 -8 -8 -6 -6 -6 -6 -6 -6 -6 -5 -5 -5 -5 -5 -5 -4 -4 -4 -4 -4 -4 -4 -3 -3 -3 -2 -2 -1 -1 ---------- Run | Yrd Mat Min Mat Min Mat Sto Rec Scr Fac Was Fac Ext Cet Arc Hub Fac Was Fac Upp Upp Zhi Pro Fac Was Fac Gar Fac Gar Res Qua Frg Res Tes Acc Com Machines Disabled 103 | . . . 6 . 10 2 . . 5 . 10 1 . 2 1 6 . . . . . . 2 . . 5 1 1 1 5 31 8 3 1 2 Max in Single Turn 7 | . . . 2 . 3 1 . . 1 . 7 1 . . 1 3 . . . . . . 1 . . 3 1 1 1 1 2 3 1 1 2 Garrison Access 17 | . . . . . 1 1 . . 4 . 2 . . . . 1 . 1 . . . . 2 . 1 . 1 . 1 1 1 . . . . Garrison Relay 2 | . . . . . . . . . . . . . . . . . . . . . . . . . . 1 . 1 . . . . . . . Phase Generator 1 | . . . . . . . . . . . . . . . . . . . . . . . . . . . . . . . . . . . 1 Network Hub 2 | . . . . . . . . . . . . . . . 2 . . . . . . . . . . . . . . . . . . . . Machines Repaired . | . . . . . . . . . . . . . . . . . . . . . . . . . . . . . . . . . . . . Machines Dismantled . | . . . . . . . . . . . . . . . . . . . . . . . . . . . . . . . . . . . . Machines Sabotaged 2 | . . . . . . . . . . . . . . . 2 . . . . . . . . . . . . . . . . . . . . Overloaded Fab Kills . | . . . . . . . . . . . . . . . . . . . . . . . . . . . . . . . . . . . . Hacking | -11 -10 -10 -9 -9 -8 -8 -8 -8 -6 -6 -6 -6 -6 -6 -6 -5 -5 -5 -5 -5 -5 -4 -4 -4 -4 -4 -4 -4 -3 -3 -3 -2 -2 -1 -1 --------- Run | Yrd Mat Min Mat Min Mat Sto Rec Scr Fac Was Fac Ext Cet Arc Hub Fac Was Fac Upp Upp Zhi Pro Fac Was Fac Gar Fac Gar Res Qua Frg Res Tes Acc Com Machines Accessed 332 | . 7 . 12 . 13 14 6 4 25 . 35 14 3 . 14 25 . 12 1 . 4 . 17 . 23 1 18 3 12 9 15 18 10 11 6 Terminals 207 | . 6 . 8 . 10 11 6 . 12 . 18 14 3 . 13 10 . 5 1 . . . 7 . 13 1 8 3 6 8 7 14 8 9 6 Fabricators 24 | . . . . . . . . . 3 . 4 . . . . 2 . 2 . . . . 1 . 2 . 1 . 1 . 4 3 . 1 . Repair Stations 15 | . . . 1 . 2 2 . . . . 2 . . . . 2 . 1 . . . . 1 . . . 3 . . . . . 1 . . Recycling Units 44 | . 1 . 2 . . . . . 6 . 6 . . . . 7 . 3 . . . . 3 . 5 . 4 . 3 . 3 1 . . . Scanalyzers 15 | . . . 1 . 1 . . . . . 3 . . . . 3 . . . . . . 3 . 1 . . . 1 . . . 1 1 . Garrison Access 19 | . . . . . . 1 . . 4 . 2 . . . 1 1 . 1 . . . . 2 . 2 . 2 . 1 1 1 . . . . Total Hacks 1075 | . 25 . 42 . 43 35 24 19 50 . 85 28 6 . 40 91 . 54 4 . 17 . 61 . 100 4 51 7 51 29 28 81 49 37 14 Successful 717 | . 14 . 26 . 26 22 19 19 32 . 63 15 2 . 19 74 . 40 4 . 17 . 46 . 70 2 46 6 28 18 14 37 33 19 6 Failed 352 | . 10 . 16 . 17 13 4 . 18 . 21 13 4 . 21 16 . 14 . . . . 14 . 29 2 5 1 23 11 14 44 16 18 8 Catastrophic 32 | . 1 . . . 1 . . . 3 . 1 . 1 . 1 1 . . . . . . 1 . 2 1 . . . 1 4 10 1 2 1 Database Lockouts 6 | . 1 . . . . . 1 . . . 1 . . . . 1 . . . . . . 1 . 1 . . . . . . . . . . Manual 620 | . 17 . 28 . 36 22 19 . 35 . 42 11 . . 31 42 . 26 . . . . 30 . 54 2 30 5 25 21 14 62 34 23 11 Terminals 768 | . 21 . 30 . 36 26 24 . 27 . 60 28 6 . 37 51 . 35 4 . . . 33 . 82 4 31 7 30 28 11 68 45 30 14 Fabricators 86 | . . . . . . . . . 9 . 6 . . . . 9 . 10 . . . . 6 . 5 . 5 . 8 . 10 12 . 6 . Repair Stations 38 | . . . 2 . 3 8 . . . . 3 . . . . 7 . 3 . . . . 2 . . . 7 . . . . . 3 . . Recycling Units 57 | . 4 . 4 . . . . . 6 . 6 . . . . 7 . 3 . . . . 5 . 5 . 4 . 6 . 6 1 . . . Scanalyzers 56 | . . . 6 . 4 . . . . . 7 . . . . 15 . . . . . . 12 . 5 . . . 5 . . . 1 1 . Garrison Access 34 | . . . . . . 1 . . 8 . 3 . . . 3 2 . 3 . . . . 3 . 3 . 4 . 2 1 1 . . . . Terminal Hacks 290 | . 4 . 6 . 8 7 8 19 3 . 29 8 2 . 8 23 . 17 4 . 17 . 14 . 36 2 14 5 10 5 5 16 12 6 2 Record 23 | . . . . . . . . 10 . . . . 2 . . . . . 4 . 5 . . . . . . . . 1 . . . 1 . Part Schematic 24 | . . . 1 . . . 5 . 1 . 3 1 . . . 1 . 2 . . 4 . . . 4 . . . . . . 1 1 . . Robot Schematic 1 | . . . . . . . . . . . . . . . . . . 1 . . . . . . . . . . . . . . . . . Robot Analysis 22 | . 2 . 1 . . 1 2 8 . . 2 . . . . . . . . . 4 . . . 1 . . . . . . . . 1 . Prototype ID Bank 35 | . 1 . 3 . 2 . . . 2 . 4 . . . 1 3 . 3 . . 4 . 3 . 5 . . . 1 2 . 1 . . . Open Door 19 | . . . . . . 5 . . . . 1 7 . . . . . . . . . . . . . . . 1 . 1 . . . 3 1 Level Access Points 1 | . . . . . . . . . . . 1 . . . . . . . . . . . . . . . . . . . . . . . . Branch Access Points 11 | . . . . . . . . . . . . . . . . . . 1 . . . . . . 7 . 1 . 1 . . 1 . . . Emergency Access Points 4 | . . . . . . . . . . . 1 . . . . . . . . . . . . . 1 1 . 1 . . . . . . . Machine Index 6 | . . . . . . . . . . . . . . . . 1 . 1 . . . . . . . . 1 . 1 . . 1 1 . . Terminal Index 8 | . . . . . 1 . . . . . 1 . . . 1 1 . 1 . . . . 1 . 1 . . . . . . 1 . . . Fabricator Index 3 | . . . . . . . . . . . . . . . . . . . . . . . 1 . 1 . . . . . . 1 . . . Scanalyzer Index 2 | . . . . . . . . . . . . . . . . 2 . . . . . . . . . . . . . . . . . . . Garrison Index 2 | . . . . . . . . . . . . . . . . 1 . . . . . . . . 1 . . . . . . . . . . Alert Level 11 | . . . . . 1 . 1 . . . 3 . . . . 2 . 1 . . . . 2 . 1 . . . . . . . . . . Unreport Threat 15 | . . . . . 1 . . . . . . . . . . . . . . . . . 3 . . . 3 . . . . 6 1 1 . Locate Traps 18 | . . . . . 1 . . . . . 1 . . . . 3 . 2 . . . . 2 . 3 . 1 . 3 . 1 1 . . . Disarm Traps 2 | . . . . . . . . . . . . . . . . . . 2 . . . . . . . . . . . . . . . . . Reprogram Traps 2 | . . . . . . . . . . . . . . . . . . . . . . . . . . . 2 . . . . . . . . Dispatch Records 2 | . . . . . . . . . . . 1 . . . . . . . . . . . . . 1 . . . . . . . . . . Maintenance Status 9 | . 1 . . . . . . . . . 5 . . . . 1 . . . . . . . . . . . . 1 . . . 1 . . Security Status 1 | . . . . . . . . . . . . . . . . . . . . . . . . . 1 . . . . . . . . . . Surveillance Status 1 | . . . . . . . . . . . . . . . . . . . . . . . . . . . . . 1 . . . . . . Extermination Status 2 | . . . . . . . . . . . . . . . . . . . . . . . . . . . 1 . . . . . 1 . . Recall Extermination 6 | . . . . . . . . . . . . . . . 1 2 . . . . . . . . 1 . 1 . . . 1 . . . . Recall Reinforcements 2 | . . . . . . . . . . . . . . . . . . . . . . . . . 2 . . . . . . . . . . Recall Assault 2 | . . . . . . . . . . . . . . . . . . . . . . . . . . . 2 . . . . . . . . Hauler Manifests 4 | . . . . . . . . . . . 1 . . . . . . . . . . . . . 1 . 1 . . . . 1 . . . Registered Components 5 | . . . . . . . . . . . 1 . . . . 1 . 1 . . . . . . 1 . . . . . . . 1 . . Registered Prototypes 4 | . . . . . . . . . . . . . . . . 1 . 1 . . . . . . 1 . . . . . . . 1 . . Zone Layout 37 | . . . 1 . 2 1 . . . . 4 . . . 5 4 . 1 . . . . 2 . 3 . 1 . 2 1 2 2 5 . 1 Garrison Registry 2 | . . . . . . . . . . . . . . . . . . . . . . . . . . 1 . 1 . . . . . . . Patrol Navigation 1 | . . . . . . . . . . . . . . . . . . . . . . . . . . . . 1 . . . . . . . Security Stations 1 | . . . . . . . . . . . . . . . . . . . . . . . . . . . . 1 . . . . . . . Proto ID Catalog 2 | . . . . . . . . 1 . . . . . . . . . . . . . . . . . . . . . . 1 . . . . Fabricator Hacks 42 | . . . . . . . . . 4 . 4 . . . . 7 . 5 . . . . 2 . 3 . 3 . 4 . 2 4 . 4 . Network Status 6 | . . . . . . . . . 1 . 1 . . . . 2 . . . . . . . . 1 . . . 1 . . . . . . Load Schematic 22 | . . . . . . . . . 2 . 1 . . . . 3 . 3 . . . . 1 . 1 . 2 . 2 . 2 3 . 2 . Build 14 | . . . . . . . . . 1 . 2 . . . . 2 . 2 . . . . 1 . 1 . 1 . 1 . . 1 . 2 . Repair Station Hacks 21 | . . . 2 . . 2 . . . . 2 . . . . 6 . 1 . . . . 2 . . . 4 . . . . . 2 . . Scan Component 10 | . . . 1 . . 1 . . . . 1 . . . . 3 . . . . . . 1 . . . 2 . . . . . 1 . . Repair 10 | . . . 1 . . 1 . . . . 1 . . . . 3 . . . . . . 1 . . . 2 . . . . . 1 . . Refit 1 | . . . . . . . . . . . . . . . . . . 1 . . . . . . . . . . . . . . . . . Recycling Unit Hacks 2 | . 2 . . . . . . . . . . . . . . . . . . . . . . . . . . . . . . . . . . Report Inventory 2 | . 2 . . . . . . . . . . . . . . . . . . . . . . . . . . . . . . . . . . Scanalyzer 44 | . . . 6 . 3 . . . . . 6 . . . . 11 . . . . . . 10 . 4 . . . 2 . . . 1 1 . Insert Component 15 | . . . 2 . 1 . . . . . 2 . . . . 3 . . . . . . 4 . 2 . . . . . . . 1 . . Analyze 16 | . . . 2 . 1 . . . . . 1 . . . . 7 . . . . . . 4 . 1 . . . . . . . . . . Retrieve Study 13 | . . . 2 . 1 . . . . . 3 . . . . 1 . . . . . . 2 . 1 . . . 2 . . . . 1 . Garrison Access Hacks 18 | . . . . . . 1 . . 3 . 2 . . . . 1 . 1 . . . . 2 . 2 . 2 . 2 1 1 . . . . Unlock Access 3 | . . . . . . . . . . . . . . . . . . . . . . . . . 1 . 1 . . 1 . . . . . Seal Access 14 | . . . . . . 1 . . 3 . 2 . . . . 1 . 1 . . . . 2 . 1 . 1 . 1 . 1 . . . . Coupler Status 1 | . . . . . . . . . . . . . . . . . . . . . . . . . . . . . 1 . . . . . . Unauthorized Hacks 298 | . 8 . 12 . 15 12 11 . 22 . 20 7 . . 11 25 . 16 . . . . 16 . 25 . 23 1 10 12 6 16 18 8 4 Terminals 231 | . 7 . 10 . 12 10 11 . 13 . 12 7 . . 11 16 . 12 . . . . 11 . 18 . 15 1 7 12 4 13 18 7 4 Track 24 | . . . 1 . 2 2 1 . . . . . . . 5 2 . 2 . . . . . . 2 . . 1 . . 1 . 5 . . Assimilate 24 | . 1 . 1 . . . . . 4 . 2 . . . . 4 . 1 . . . . 1 . 3 . 3 . . 1 . 1 2 . . Botnet 71 | . 1 . 3 . 3 3 5 . 3 . 5 2 . . 3 3 . 3 . . . . 4 . 7 . 4 . 2 4 2 4 4 2 4 Detonate 1 | . . . . . . . . . . . . . . . . . . . . . . . . . . . . . . . . . 1 . . Disrupt 4 | . . . . . . . . . 1 . . . . . . . . . . . . . . . . . 1 . . . . 1 1 . . Operators 6 | . . . . . 1 . . . . . . . . . . 1 . 1 . . . . . . . . 2 . . . . 1 . . . Skim 98 | . 5 . 5 . 6 5 5 . 5 . 5 5 . . . 6 . 5 . . . . 6 . 6 . 5 . 5 7 1 6 5 5 . Sabotage 3 | . . . . . . . . . . . . . . . 3 . . . . . . . . . . . . . . . . . . . . Fabricators 17 | . . . . . . . . . 2 . 1 . . . . 2 . 1 . . . . 2 . 2 . 2 . 1 . . 3 . 1 . Prioritize 8 | . . . . . . . . . 1 . . . . . . 1 . 1 . . . . 1 . 1 . 1 . 1 . . . . 1 . Liberate 2 | . . . . . . . . . . . . . . . . . . . . . . . 1 . . . . . . . . 1 . . . Recompile 7 | . . . . . . . . . 1 . 1 . . . . 1 . . . . . . . . 1 . 1 . . . . 2 . . . Repair Stations 6 | . . . . . 2 2 . . . . 1 . . . . . . . . . . . . . . . 1 . . . . . . . . Mechanics 2 | . . . . . . . . . . . 1 . . . . . . . . . . . . . . . 1 . . . . . . . . Patch 4 | . . . . . 2 2 . . . . . . . . . . . . . . . . . . . . . . . . . . . . . Recycling Units 41 | . 1 . 2 . . . . . 6 . 6 . . . . 7 . 3 . . . . 3 . 5 . 4 . 2 . 2 . . . . Reject 3 | . 1 . 2 . . . . . . . . . . . . . . . . . . . . . . . . . . . . . . . . Fedlink 37 | . . . . . . . . . 6 . 6 . . . . 7 . 3 . . . . 3 . 5 . 4 . 2 . 1 . . . . Scraphulk 1 | . . . . . . . . . . . . . . . . . . . . . . . . . . . . . . . 1 . . . . Scanalyzers 1 | . . . . . 1 . . . . . . . . . . . . . . . . . . . . . . . . . . . . . . Extract 1 | . . . . . 1 . . . . . . . . . . . . . . . . . . . . . . . . . . . . . . Garrison Access 2 | . . . . . . . . . 1 . . . . . . . . . . . . . . . . . 1 . . . . . . . . Reprogram 1 | . . . . . . . . . . . . . . . . . . . . . . . . . . . 1 . . . . . . . . Jam 1 | . . . . . . . . . 1 . . . . . . . . . . . . . . . . . . . . . . . . . . Data Cores Recovered 4 | . . . . . 1 . . . . . 1 . . . . . . . . . . . . . . . . . . . . . 1 1 . Used 2 | . . . . . . . . . . . . . . . . . . . . . . . . . . . . . . . . . 1 1 . Hacking Detections 198 | . 7 . 12 . 9 9 2 . 17 . 21 8 2 . 13 9 . 6 . . . . 6 . 11 1 8 2 9 6 6 14 7 8 5 Full Trace Events 17 | . 1 . 1 . 1 . . . . . . . . . 2 1 . 2 . . . . 1 . 1 . . . 2 . 3 1 . 1 . Feedback Events 4 | . . . . . . . . . . . . . . . . . . 1 . . . . . . . . . . 2 . . 1 . . . Corruption 2 | . . . . . . . . . . . . . . . . . . . . . . . . . . . . . 1 . . 1 . . . Hackware Fried 2 | . . . . . . . . . . . . . . . . . . 1 . . . . . . . . . . 1 . . . . . . Feedback Blocked . | . . . . . . . . . . . . . . . . . . . . . . . . . . . . . . . . . . . . Robot Schematics Acquired 3 | . . . . . . . . . . . . . . . . . . . . . . . . . . . . . . . 3 . . . . Robots Built 3 | . . . . . . . . . . . 3 . . . . . . . . . . . . . . . . . . . . . . . . Authchips . | . . . . . . . . . . . . . . . . . . . . . . . . . . . . . . . . . . . . Time 119 | . . . . . . . . . . . 119 . . . . . . . . . . . . . . . . . . . . . . . . Total Robot Build Rating 5 | . . . . . . . . . . . 5 . . . . . . . . . . . . . . . . . . . . . . . . Part Schematics Acquired 163 | . . . 3 . 5 . 5 . 1 . 4 1 . . . 4 . 2 . . 4 . 3 . 5 . . . . . 124 1 1 . . Parts Built 17 | . . . . . . . . . 2 . . . . . . 3 . 3 . . . . 2 . 2 . 1 . 1 . . 1 . 2 . Authchips 7 | . . . . . . . . . 1 . . . . . . 1 . 1 . . . . . . . . 1 . 1 . . 1 . 1 . Time 547 | . . . . . . . . . 39 . . . . . . 89 . 114 . . . . 18 . 26 . 51 . 34 . . 68 . 108 . Total Part Build Rating 105 | . . . . . . . . . 14 . . . . . . 12 . 20 . . . . 6 . 12 . 8 . 8 . . 8 . 17 . Part Studies Acquired 13 | . . . 2 . 1 . . . . . 3 . . . . 1 . . . . . . 2 . 1 . . . 2 . . . . 1 . Parts Repaired 10 | . . . 1 . . 1 . . . . 1 . . . . 3 . . . . . . 1 . . . 2 . . . . . 1 . . Time 393 | . . . 60 . . 26 . . . . 50 . . . . 167 . . . . . . 26 . . . 31 . . . . . 33 . . Parts Recycled . | . . . . . . . . . . . . . . . . . . . . . . . . . . . . . . . . . . . . Recycled Matter . | . . . . . . . . . . . . . . . . . . . . . . . . . . . . . . . . . . . . Retrieved Matter . | . . . . . . . . . . . . . . . . . . . . . . . . . . . . . . . . . . . . Retrieved Components . | . . . . . . . . . . . . . . . . . . . . . . . . . . . . . . . . . . . . Parts Scanalyzed 11 | . . . 2 . 1 . . . . . 1 . . . . 3 . . . . . . 3 . 1 . . . . . . . . . . Part Schematics Acquired 11 | . . . 2 . 1 . . . . . 1 . . . . 3 . . . . . . 3 . 1 . . . . . . . . . . Parts Damaged . | . . . . . . . . . . . . . . . . . . . . . . . . . . . . . . . . . . . . Bothacking | -11 -10 -10 -9 -9 -8 -8 -8 -8 -6 -6 -6 -6 -6 -6 -6 -5 -5 -5 -5 -5 -5 -4 -4 -4 -4 -4 -4 -4 -3 -3 -3 -2 -2 -1 -1 ------------ Run | Yrd Mat Min Mat Min Mat Sto Rec Scr Fac Was Fac Ext Cet Arc Hub Fac Was Fac Upp Upp Zhi Pro Fac Was Fac Gar Fac Gar Res Qua Frg Res Tes Acc Com Used RIF Installer 3 | . . . . . . . . . . . . . . . . . . . . . . . . . . 2 . 1 . . . . . . . Zone Cloak 1 | . . . . . . . . . . . . . . . . . . . . . . . . . . 1 . . . . . . . . . Autooverride 1 | . . . . . . . . . . . . . . . . . . . . . . . . . . . . 1 . . . . . . . Robots Hacked 10 | . . . . . . . . . . . . . . 3 . 2 . . . . . . . . . . . . 1 . 4 . . . . Non-combat 6 | . . . . . . . . . . . . . . 3 . 2 . . . . . . . . . . . . 1 . . . . . . Combat 4 | . . . . . . . . . . . . . . . . . . . . . . . . . . . . . . . 4 . . . . Robot Hacks Applied 21 | . . . . . . . . . . . . . . 3 . 2 . . . . . . . . . . . . 1 . 15 . . . . parse_system 1 | . . . . . . . . . . . . . . . . . . . . . . . . . . . . . . . 1 . . . . find_chute 1 | . . . . . . . . . . . . . . . . 1 . . . . . . . . . . . . . . . . . . . find_recycling 1 | . . . . . . . . . . . . . . . . 1 . . . . . . . . . . . . . . . . . . . check_alert 3 | . . . . . . . . . . . . . . 3 . . . . . . . . . . . . . . . . . . . . . disable_scanner 3 | . . . . . . . . . . . . . . . . . . . . . . . . . . . . . . . 3 . . . . report_schematics 11 | . . . . . . . . . . . . . . . . . . . . . . . . . . . . . . . 11 . . . . formatsys_low 1 | . . . . . . . . . . . . . . . . . . . . . . . . . . . . . 1 . . . . . . Relay Couplers Released 17 | . . . . . 3 . . . . . . . . . . . . . . . . . . . . 3 1 5 3 2 . . . . . Machine Destruction 17 | . . . . . 3 . . . . . . . . . . . . . . . . . . . . 3 1 5 3 2 . . . . . Attached 3 | . . . . . . . . . . . . . . . . . . . . . . . . . . . . . 1 1 1 . . . . Fabnet Peak Effective % . | . . . . . . . . . . . . . . . . . . . . . . . . . . . . . . . . . . . . Robots Rewired 17 | . . . . . . . . . . . . 14 . . . . . . . . . . . . . . . 3 . . . . . . . Allies Hacked 1 | . . . . . . . . . . . 1 . . . . . . . . . . . . . . . . . . . . . . . . Hacks Repelled . | . . . . . . . . . . . . . . . . . . . . . . . . . . . . . . . . . . . . Allies | -11 -10 -10 -9 -9 -8 -8 -8 -8 -6 -6 -6 -6 -6 -6 -6 -5 -5 -5 -5 -5 -5 -4 -4 -4 -4 -4 -4 -4 -3 -3 -3 -2 -2 -1 -1 -------- Run | Yrd Mat Min Mat Min Mat Sto Rec Scr Fac Was Fac Ext Cet Arc Hub Fac Was Fac Upp Upp Zhi Pro Fac Was Fac Gar Fac Gar Res Qua Frg Res Tes Acc Com Total Allies 79 | . 1 3 1 . . . . . 4 19 5 23 . . . 1 . . . . . . 3 . 2 . 5 3 1 . 1 3 1 3 . Largest Group 20 | . 1 4 1 1 . . . . 2 20 13 13 10 3 . 1 . . . . . . 2 . 1 . 5 8 1 . 1 3 1 3 . Highest-Rated Group 728 | . 10 50 10 10 . . . . 26 728 365 426 322 112 . 26 . . . . . . 98 . 45 . 228 349 14 . 139 154 26 379 . Highest-Rated Ally 159 | . 10 16 10 10 . . . . 26 50 46 159 39 39 . 26 . . . . . . 49 . 45 . 47 47 14 . 139 64 26 135 . Initial UFD Resources 145 | . . . . . . . . . 22 44 44 56 56 56 56 60 84 84 90 90 90 94 94 110 110 120 120 128 131 145 145 . . . . Total Orders 27 | . . . 2 . . . . . 2 2 . . 3 1 . 6 . . . . . . . . . . 3 6 1 . . . 1 . . STAY 12 | . . . 1 . . . . . 1 1 . . . . . 3 . . . . . . . . . . 2 3 . . . . 1 . . ROAM 2 | . . . . . . . . . . . . . 1 1 . . . . . . . . . . . . . . . . . . . . . FOLLOW 12 | . . . 1 . . . . . 1 1 . . 2 . . 3 . . . . . . . . . . 1 3 . . . . . . . AID 1 | . . . . . . . . . . . . . . . . . . . . . . . . . . . . . 1 . . . . . . Ally Attacks 504 | . . 9 . . . . . . . 114 96 141 54 6 . . . . . . . . 4 . . . . 56 . . 16 5 . 3 . Total Damage 12028 | . . 93 . . . . . . . 2755 1854 3219 1037 126 . . . . . . . . 110 . . . . 1740 . . 878 216 . . . Kills 60 | . . . . . . . . . . 4 12 25 9 1 . . . . . . . . 1 . . . . 4 . . 4 . . . . Allies Corrupted 2 | . . . . . . . . . . . . . . . . 1 . . . . . . . . . . . . . . . . . 1 . Allies Melted 4 | . . . . . . . . . . . . . . . . . . . . . . . . . . . . 1 . . 3 . . . . Intel | -11 -10 -10 -9 -9 -8 -8 -8 -8 -6 -6 -6 -6 -6 -6 -6 -5 -5 -5 -5 -5 -5 -4 -4 -4 -4 -4 -4 -4 -3 -3 -3 -2 -2 -1 -1 ------- Run | Yrd Mat Min Mat Min Mat Sto Rec Scr Fac Was Fac Ext Cet Arc Hub Fac Was Fac Upp Upp Zhi Pro Fac Was Fac Gar Fac Gar Res Qua Frg Res Tes Acc Com Active Infowar (turns) 18323 | 14 63 . 106 . 841 801 16 178 718 249 1149 645 239 213 165 1401 83 298 85 93 72 331 1268 18 578 185 824 423 810 426 3928 777 488 506 332 Optics 12931 | . . . . . . . . . . . . . . . 42 1401 83 298 85 93 72 331 1268 18 578 185 824 423 810 426 3891 777 488 506 332 Sensors 14259 | . . . . . . . . . 718 249 1149 645 239 213 123 954 83 298 85 93 72 331 1268 18 575 . 802 . 792 413 3858 263 334 506 178 IFF 271 | . . . . . . . . . . . . . . . . 271 . . . . . . . . . . . . . . . . . . . Structural 5195 | . . . 106 . 841 801 16 178 . . . . . . . . . . . . . . 910 18 521 2 359 . 591 335 . 517 . . . Traps 307 | . . . . . . . . . . . . . . . . . . . . . . . . . . . . . 238 69 . . . . . Seismic 581 | 14 63 . . . . . . . . . . . . . . . . . . . . . . . . . 37 114 . . . 208 145 . . Decoding 149 | . . . . . . . . . . . . . . . . . . . . . . 63 86 . . . . . . . . . . . . Cloaking 4339 | . . . . . . . . . . . . . . . . . . . . . . . 2 . . . . . 585 133 1844 573 471 506 225 Jamming 159 | . . . . . . . . . . . . . . . . . . . . . . . . . . . . . . . 159 . . . . ECM 1296 | . . . . . . . . . . . . . . . . 350 . 157 . . 3 . 122 . 54 179 22 . . . 31 226 124 2 26 Robot Analysis Total 22 | . 2 . 1 . . 1 2 8 . . 2 . . . . . . . . . 4 . . . 1 . . . . . . . . 1 . Derelict Logs Recovered 5 | . . 2 . . . . . . . . . . . . . . . . 1 1 . 1 . . . . . . . . . . . . . Drone Launches . | . . . . . . . . . . . . . . . . . . . . . . . . . . . . . . . . . . . . Drone Recoveries . | . . . . . . . . . . . . . . . . . . . . . . . . . . . . . . . . . . . . Decoded 0b10 Intel 6 | . . . . . . . . . . . . . . . . . . . . . . . 6 . . . . . . . . . . . . Items 6 | . . . . . . . . . . . . . . . . . . . . . . . 6 . . . . . . . . . . . . Exploration | -11 -10 -10 -9 -9 -8 -8 -8 -8 -6 -6 -6 -6 -6 -6 -6 -5 -5 -5 -5 -5 -5 -4 -4 -4 -4 -4 -4 -4 -3 -3 -3 -2 -2 -1 -1 ------------- Run | Yrd Mat Min Mat Min Mat Sto Rec Scr Fac Was Fac Ext Cet Arc Hub Fac Was Fac Upp Upp Zhi Pro Fac Was Fac Gar Fac Gar Res Qua Frg Res Tes Acc Com Turns Passed 20801 | 42 508 313 828 27 842 807 559 327 719 249 1322 645 239 213 235 1401 83 298 85 93 72 331 1268 18 578 185 824 423 810 426 3928 777 488 506 332 Spaces Moved 40843 | 52 647 479 1453 83 1192 895 208 1185 1706 515 3160 790 235 175 587 2531 287 500 297 325 174 485 2322 73 1847 482 2142 812 2059 1040 7251 2342 1002 765 745 Core 756 | 52 647 54 . . . . . . . . . . . . . . . . . . . . . . . . . . . . 3 . . . . Treads . | . . . . . . . . . . . . . . . . . . . . . . . . . . . . . . . . . . . . Legs . | . . . . . . . . . . . . . . . . . . . . . . . . . . . . . . . . . . . . Wheels . | . . . . . . . . . . . . . . . . . . . . . . . . . . . . . . . . . . . . Hover . | . . . . . . . . . . . . . . . . . . . . . . . . . . . . . . . . . . . . Flight 40087 | . . 425 1453 83 1192 895 208 1185 1706 515 3160 790 235 175 587 2531 287 500 297 325 174 485 2322 73 1847 482 2142 812 2059 1040 7248 2342 1002 765 745 Fastest Speed 5 | 50 50 37 28 28 25 26 27 27 23 23 23 24 24 24 5 23 24 24 19 15 24 24 15 21 19 21 17 17 15 14 7 6 6 10 5 Average Speed 21 | 50 50 38 30 28 25 26 27 27 24 23 23 24 24 24 22 24 24 24 23 23 24 24 23 21 20 21 18 17 19 19 18 12 11 10 11 Slowest Speed 700 | 50 50 60 37 28 26 106 27 27 27 23 93 24 24 24 24 29 24 24 24 24 24 24 27 21 21 21 100 18 94 93 700 15 16 11 70 Overloaded Moves 613 | . . . . . . . . . . . . . . . 56 . . . 9 2 . . 17 . 45 . . . 2 44 229 177 12 . 20 Propulsion Burnouts 1 | . . . . . . . . . . . . . . . . . . . . . . . . . . . . . . . . 1 . . . Robots Hopped 221 | . . 6 30 3 15 2 2 . 8 2 21 10 . . 7 13 3 . . . . . 2 4 5 3 10 2 16 3 31 12 5 2 4 Potential Cave-ins 11 | . . . . . . . . . . . . . . . 2 3 . . . . . . . . . . . . . . 6 . . . . Cave-ins Triggered 1 | . . . . . . . . . . . . . . . . . . . . . . . 1 . . . . . . . . . . . . Teleports 1 | . . . . . . . . . . . . . . . . . . . . . . . . . . . . . . . 1 . . . . Exploration Rate (%) 66 | 3 98 90 81 18 73 89 53 82 55 93 77 75 68 84 77 63 100 16 59 62 63 74 52 74 64 55 60 50 57 92 89 69 99 25 37 Regions Visited 35 Branch Regions 17 Pre-discovered Areas 26 | . . 1 3 . 2 . 2 . 5 . 1 2 . . . 1 . 2 1 . 3 . . . . . 1 . . . . 1 . 1 . Known Exits Taken 22 | . . . . 1 1 . 1 1 . . 1 1 1 1 1 . . 1 1 1 1 1 . . 1 . 1 . 1 1 1 1 1 1 . Unknown Exits Taken 5 | 1 1 1 1 . . 1 . . . . . . . . . . . . . . . . . . . . . . . . . . . . . Scrap Searched 14 | . . 1 . 1 . . . 4 . . . . . . . . . . 5 1 . 2 . . . . . . . . . . . . . Spaces Dug 384 | . . . . . 4 7 . . 18 . 36 7 . . 7 40 1 3 2 5 . . 38 . 23 5 16 2 24 8 30 78 14 14 2 Terrain Destroyed 1539 | . . . 17 . 40 24 . . 51 . 87 25 1 3 70 136 54 3 2 5 . . 118 . 23 137 74 90 44 8 57 353 17 16 84 Melee 306 | . . . . . 4 7 . . 18 . 36 7 . . 4 36 1 3 2 5 . . 38 . 23 5 16 2 24 8 17 28 14 6 2 Projectile 100 | . . . . . . . . . . . . 1 1 3 4 4 . . . . . . . . . . . 1 . . 13 60 3 10 . AOE 1130 | . . . 17 . 36 17 . . 33 . 51 17 . . 62 96 53 . . . . . 80 . . 132 58 87 20 . 26 263 . . 82 Terrain Rammed . | . . . . . . . . . . . . . . . . . . . . . . . . . . . . . . . . . . . . Walls Destroyed . | . . . . . . . . . . . . . . . . . . . . . . . . . . . . . . . . . . . . Machines Disabled . | . . . . . . . . . . . . . . . . . . . . . . . . . . . . . . . . . . . . Actions | -11 -10 -10 -9 -9 -8 -8 -8 -8 -6 -6 -6 -6 -6 -6 -6 -5 -5 -5 -5 -5 -5 -4 -4 -4 -4 -4 -4 -4 -3 -3 -3 -2 -2 -1 -1 --------- Run | Yrd Mat Min Mat Min Mat Sto Rec Scr Fac Was Fac Ext Cet Arc Hub Fac Was Fac Upp Upp Zhi Pro Fac Was Fac Gar Fac Gar Res Qua Frg Res Tes Acc Com Total 50402 | 60 738 555 1713 83 1611 1379 708 1190 1907 631 3536 1156 407 330 640 3191 290 672 307 331 190 698 2933 71 1974 531 2458 1012 2353 1228 9457 2683 1294 1166 919 Wait 6471 | . 24 34 137 3 311 369 501 4 105 98 160 224 161 134 16 517 1 146 7 2 . 213 482 . 72 20 203 101 138 130 1396 154 190 369 49 Move 40395 | 51 646 466 1394 76 1165 890 203 1184 1690 511 3118 771 234 174 572 2505 281 499 296 324 173 484 2318 66 1837 475 2122 808 2028 1033 7195 2318 991 760 737 Hop 195 | . . 6 28 3 11 2 2 . 8 1 20 8 . . 7 13 2 . . . . . 2 2 5 3 9 1 14 3 24 11 5 2 3 Pick Up 214 | 1 5 2 7 1 10 3 . . 12 2 8 . . 1 1 15 . 6 . . 2 . 16 1 3 . 3 4 11 5 73 10 4 3 5 Fast Attach 150 | 5 1 4 6 . 2 8 . . 3 . 7 1 . 1 2 17 . 1 1 . 1 1 7 . 2 . 5 . 4 10 45 6 7 1 2 Attach 210 | . 1 . 7 . 7 2 . . 5 . 7 . . 1 1 8 1 3 . . . . 5 1 1 . 4 3 5 2 85 30 6 4 21 Detach 140 | . . . 1 . 2 2 . . 1 . 4 . . 1 1 5 1 1 . . . . 2 . 1 1 3 . . . 83 17 7 1 6 Swap 345 | . . 5 16 . 12 25 1 2 9 2 41 5 3 . 5 17 . 2 . . 5 . 8 . 11 12 22 19 40 10 23 19 9 5 17 Drop 286 | . 1 9 14 . 5 17 1 . 8 3 21 . 1 1 3 16 . 8 1 . 2 . 18 1 4 1 4 3 15 13 89 7 7 2 11 Fire 996 | 3 58 29 103 . 68 32 . . 30 14 72 52 7 8 11 12 3 . . . . . 14 . . 10 6 52 4 . 269 65 34 5 35 Melee 757 | . . . . . 18 29 . . 36 . 72 15 1 9 21 66 1 6 2 5 7 . 61 . 38 9 58 21 60 19 77 45 34 14 33 Ram 2 | . 2 . . . . . . . . . . . . . . . . . . . . . . . . . . . . . . . . . . Kick . | . . . . . . . . . . . . . . . . . . . . . . . . . . . . . . . . . . . . Crush . | . . . . . . . . . . . . . . . . . . . . . . . . . . . . . . . . . . . . Escape Stasis 92 | . . . . . . . . . . . 6 23 . . . . . . . . . . . . . . . . . . 62 1 . . . Rewire 58 | . . . . . . . . . . . . 57 . . . . . . . . . . . . . . . . 1 . . . . . . Trap 61 | . . . . . . . . . . . . . . . . . . . . . . . . . . . 19 . 33 3 6 . . . . Miscellaneous 30 | . . . . . . . . . . . . . . . . . . . . . . . . . . . . . . . 30 . . . . Route ------- -11/Scrapyard -10/Materials (discovered 6 exits: *Mat x3 / [*Min x2] / [*Sub]) -10/Mines (discovered 3 exits: *Mat x2 / [*Exi]) -9/Materials (discovered 5 exits: *Mat x3 / [*Min x2]) -9/Mines -8/Materials (discovered 4 exits: *Fac x3 / *Sto) -8/Storage (discovered 2 exits: *Fac / *Rec) -8/Recycling (discovered 2 exits: *Fac / *Scr) -8/Scraptown (discovered 2 exits: *Fac x2) -6/Factory (discovered 8 exits: *Fac x4 / *Low x2 / Ext x2) -6/Waste -6/Factory (discovered 8 exits: *Fac x4 / *Low x2 / *Ext x2) -6/Extension (discovered 3 exits: *Fac x2 / *Cet) -6/Cetus (discovered 3 exits: *Fac x2 / *Arc) -6/Archives (discovered 2 exits: *Hub x2) -6/Hub_04(d) (discovered 4 exits: *Fac x4) -5/Factory (discovered 5 exits: *Fac x3 / *Upp x2) -5/Waste -5/Factory (discovered 3 exits: Fac / *Upp x2) -5/Upper Caves -5/Upper Caves (discovered 2 exits: Fac / *Zhi) -5/Zhirov -4/Proximity Caves -4/Factory (discovered 5 exits: *Res x3 / *Upp x2) -4/Waste -4/Factory (discovered 7 exits: *Res x4 / *Upp x2 / Gar) -4/Garrison (discovered 3 exits: *Fac x3) -4/Factory (discovered 7 exits: *Res x4 / Upp x2 / Gar) -4/Garrison (discovered 3 exits: *Res x3) -3/Research (discovered 5 exits: *Res x2 / *Arm / *Qua x2) -3/Quarantine (discovered 3 exits: *Res / *Sec / *Frg) -3/Protoforge -2/Research (discovered 5 exits: *Acc x3 / *Tes x2) -2/Testing -1/Access (discovered 2 exits: Sur / *Com) -1/Command (discovered 2 exits: *Sur x2) To Epsilon Eridani History --------- Turn | Location | Event 7 | -11/Scrapyard | Discovered new exit (range 16) 43 | -11/Scrapyard | Entered Materials 78 | -10/Materials | Discovered new exit (range 9) 195 | -10/Materials | Discovered new exit (range 10) 195 | -10/Materials | Discovered new exit (range 7) 302 | -10/Materials | Build established: Mutant 331 | -10/Materials | Central database locked down 352 | -10/Materials | Discovered new exit (range 8) 400 | -10/Materials | Learned Storage terminal intel 443 | -10/Materials | Learned Recycling recycling unit intel 447 | -10/Materials | Discovered new exit (range 4) 471 | -10/Materials | Discovered new exit (range 7) 476 | -10/Materials | Learned location of 2 exits from Subcaves 498 | -10/Materials | Loaded intel: 1 repair station location 509 | -10/Materials | Learned location of 1 exit from Recycling 551 | -10/Materials | Entered Mines 551 | -10/Mines | Accompanied by 1 ally 560 | -10/Mines | Discovered new exit (range 6) 613 | -10/Mines | Learned Materials stockpile data 697 | -10/Mines | Learned location of Zion (-6) 725 | -10/Mines | Discovered new exit (range 9) 780 | -10/Mines | Core integrity fell below 50% 811 | -10/Mines | Assembled infested the area 814 | -10/Mines | Assisted by bots powering up and referring to "LRC-V3" 817 | -10/Mines | Deemed a non-threat by the Exiles lab entrance 817 | -10/Mines | Discovered new exit (range 5) 864 | -10/Mines | Entered Materials 864 | -9/Materials | Evolved 2 slots: Propulsion x2 1087 | -9/Materials | Discovered new exit (range 15) 1167 | -9/Materials | Build established: Scavenger-Sprinter 1236 | -9/Materials | Discovered new exit (range 8) 1397 | -9/Materials | Identified exit to Materials 1488 | -9/Materials | Repaired Adv. EMP Blaster? 1532 | -9/Materials | Learned location of 2 exits from Materials 1578 | -9/Materials | Learned Storage trap positions 1584 | -9/Materials | Learned location of Recycling (-8) 1664 | -9/Materials | First assault squad dispatched 1692 | -9/Materials | Entered Mines 1692 | -9/Mines | Accompanied by 1 ally 1717 | -9/Mines | Discovered exit to Materials (range 3) 1719 | -9/Mines | Entered Materials 1719 | -8/Materials | Evolved 2 slots: Propulsion x1, Utility x1 1720 | -8/Materials | Identified exit to Storage 1720 | -8/Materials | Identified exit to Factory 1742 | -8/Materials | Build established: Sprinter 1881 | -8/Materials | Garrison activated, responded to threat 1920 | -8/Materials | Destroyed 7 combat bots 2204 | -8/Materials | Discovered exit to Factory (range 16) 2331 | -8/Materials | Learned Factory emergency access door positions 2349 | -8/Materials | Learned Factory trap positions 2355 | -8/Materials | Destroyed 7 combat bots 2357 | -8/Materials | Learned location of 2 exits from Factory 2358 | -8/Materials | Learned location of 3 exits from Factory 2359 | -8/Materials | Learned 4 Recycling zone layouts 2367 | -8/Materials | Learned location of 1 exit from Extension 2384 | -8/Materials | Learned Storage security intel 2479 | -8/Materials | Discovered exit to Factory (range 14) 2519 | -8/Materials | First assault squad dispatched 2561 | -8/Materials | Entered Storage 2562 | -8/Storage | Loaded intel: 11 trap records 2564 | -8/Storage | Loaded intel: 17 terminal locations 2590 | -8/Storage | Repaired Flight Unit+ 2666 | -8/Storage | Destroyed 7 combat bots 2754 | -8/Storage | Found Prototype Launcher 2754 | -8/Storage | Identified Gui. Missile Launcher 2793 | -8/Storage | Discovered exit to Factory (range 5) 2871 | -8/Storage | Found Prototype Launcher 2871 | -8/Storage | Identified Gui. EMP Blaster 2885 | -8/Storage | Used back door to open Recycling access 2885 | -8/Storage | Discovered new exit (range 5) 2961 | -8/Storage | First assault squad dispatched 3018 | -8/Storage | Learned 12 Factory zone layouts 3076 | -8/Storage | Learned 4 Lower Caves zone layouts 3123 | -8/Storage | Learned location of 1 exit from Extension 3192 | -8/Storage | Learned location of 2 exits from Factory 3211 | -8/Storage | Learned location of 2 exits from Lower Caves 3238 | -8/Storage | Learned Factory emergency access door positions 3266 | -8/Storage | Loaded intel: 1 garrison access location 3303 | -8/Storage | Learned 8 Factory zone layouts 3349 | -8/Storage | Learned 4 Factory zone layouts 3368 | -8/Storage | Entered Recycling 3369 | -8/Recycling | Identified exit to Scraptown 3371 | -8/Recycling | Loaded intel: 5 recycling unit locations 3393 | -8/Recycling | Watched by a mysterious "MATRIX" hacker 3414 | -8/Recycling | Discovered new exit (range 13) 3419 | -8/Recycling | Scanned before Scraplab entrance 3423 | -8/Recycling | Entered Scraplab 3484 | -8/Recycling | Learned 2 Storage zone layouts 3618 | -8/Recycling | Learned 4 Lower Caves zone layouts 3670 | -8/Recycling | Learned Storage emergency access door positions 3713 | -8/Recycling | Learned Storage emergency access door positions 3911 | -8/Recycling | Learned 4 Factory zone layouts 3927 | -8/Recycling | Entered Scraptown 3927 | -8/Scraptown | System corruption cleaned by C-Scrubber 3928 | -8/Scraptown | Identified exit to Factory 3966 | -8/Scraptown | Visited UFD Registry 3966 | -8/Scraptown | Registered with UFD as "Arckit" 3970 | -8/Scraptown | Visited Awakened 3974 | -8/Scraptown | Visited Assassins FH 3983 | -8/Scraptown | Visited Red Mages 3999 | -8/Scraptown | Visited Artisan Demo Area 4015 | -8/Scraptown | Visited CR-KLE's Repair Center 4020 | -8/Scraptown | Visited Cave Peace 4034 | -8/Scraptown | Visited Fellowship of the Rings 4104 | -8/Scraptown | Visited Analyses Database 4110 | -8/Scraptown | Visited Junk Repository 4117 | -8/Scraptown | Visited A0-MCA Data Center 4121 | -8/Scraptown | Visited Science Testing Area 4125 | -8/Scraptown | Visited Derelict Rescue Squad 4131 | -8/Scraptown | Visited Junk Repository 4135 | -8/Scraptown | Visited Research Penetration Think Tank 4141 | -8/Scraptown | Visited Scrap Suit Storage 4146 | -8/Scraptown | Visited LU-1G1's Boring Crew 4156 | -8/Scraptown | Visited Science Guys 4177 | -8/Scraptown | Given a C+ rating by A0-MCA 4207 | -8/Scraptown | CR-KLE repaired 4 parts 4238 | -8/Scraptown | Met Optimus 4238 | -8/Scraptown | Accepted into 0bPrime 4254 | -8/Scraptown | Entered Factory 4254 | -6/Factory | Evolved 4 slots: Propulsion x1, Utility x3 4255 | -6/Factory | Identified exit to Lower Caves 4256 | -6/Factory | Identified exit to Extension 4256 | -6/Factory | Identified exit to Factory 4258 | -6/Factory | Loaded intel: 80 trap records 4298 | -6/Factory | Loaded intel: 8 recycling unit locations 4335 | -6/Factory | Learned location of Protoforge (-3) 4586 | -6/Factory | Build established: Hacker-Sprinter 4655 | -6/Factory | Fabricated Hyp. Mass Driver (x2) 4713 | -6/Factory | Spotted B-75 Beast 4913 | -6/Factory | Garrison activated, responded to threat 4950 | -6/Factory | Learned location of Proximity Caves (-4) 4960 | -6/Factory | Loaded intel: 4 garrison access locations 4961 | -6/Factory | Learned Hub_04(d) trap positions 4962 | -6/Factory | Learned location of Lower Caves (-6) 4965 | -6/Factory | Learned location of Extension (-6) 4973 | -6/Factory | Manually triggered Chute Trap 4973 | -6/Factory | Sucked down chute 4973 | -6/Factory | Entered Waste 4982 | -6/Waste | Spotted C-40 Crusher 4983 | -6/Waste | 1 allies followed down the chute 4983 | -6/Waste | Spotted C-40 Crusher 4983 | -6/Waste | Spotted C-40 Crusher 4984 | -6/Waste | Spotted C-40 Crusher 4988 | -6/Waste | Spotted C-40 Crusher 4988 | -6/Waste | Discovered new exit (range 16) 4989 | -6/Waste | Spotted C-40 Crusher 5007 | -6/Waste | Warlord forces began an assault 5029 | -6/Waste | Destroyed C-40 Crusher 5034 | -6/Waste | Destroyed C-40 Crusher 5036 | -6/Waste | Allies destroyed C-40 Crusher 5059 | -6/Waste | Destroyed C-40 Crusher 5068 | -6/Waste | Destroyed C-40 Crusher 5071 | -6/Waste | Allies destroyed C-40 Crusher 5102 | -6/Waste | Lost 9 allies 5117 | -6/Waste | Identified exit to Factory 5222 | -6/Waste | Entered Factory 5222 | -6/Factory | Accompanied by 10 allies 5226 | -6/Factory | Discovered exit to Factory (range 15) 5291 | -6/Factory | Discovered exit to Lower Caves (range 6) 5340 | -6/Factory | Fabricated O-24 Administrator? 5372 | -6/Factory | Discovered exit to Lower Caves (range 14) 5379 | -6/Factory | Spotted B-75 Beast 5439 | -6/Factory | Lost 3 allies 5447 | -6/Factory | Learned Extension trap positions 5514 | -6/Factory | Loaded intel: 8 recycling unit locations 5564 | -6/Factory | Learned location of 1 exit from Factory 5607 | -6/Factory | Learned Extension stockpile data 5631 | -6/Factory | Central database locked down 5641 | -6/Factory | Learned location of 1 exit from Cetus 5664 | -6/Factory | Learned location of 1 exit from Hub_04(d) 5676 | -6/Factory | Repaired Lgt. Fission Core+ 5676 | -6/Factory | Learned Extension trap positions 5711 | -6/Factory | Garrison activated, responded to threat 5726 | -6/Factory | Learned 4 Extension zone layouts 5739 | -6/Factory | Destroyed 8 combat bots 5764 | -6/Factory | Learned Extension emergency access door positions 5814 | -6/Factory | Learned location of Upper Caves (-4) 6006 | -6/Factory | Targeted by mysterious "MATRIX" hacker 6047 | -6/Factory | Cargo convoy interrupted 6061 | -6/Factory | Fabricated T-07 Excavator? 6544 | -6/Factory | Entered Extension 6545 | -6/Extension | Identified exit to Cetus 6547 | -6/Extension | Loaded intel: 20 trap records 6558 | -6/Extension | Rescued A7 6594 | -6/Extension | Rescued a captive Derelict 6595 | -6/Extension | Rescued a captive Derelict 6689 | -6/Extension | Rescued a captive Derelict 6724 | -6/Extension | Rescued a captive Derelict 6726 | -6/Extension | Rescued a captive Derelict 6727 | -6/Extension | Rescued a captive Derelict 6742 | -6/Extension | Learned location of 1 exit from Hub_04(d) 6781 | -6/Extension | Spotted B-75 Beast 6799 | -6/Extension | Spotted B-75 Beast 6815 | -6/Extension | Destroyed B-75 Beast 6823 | -6/Extension | Learned Extension stockpile data 6840 | -6/Extension | Extracted ID and sensor layout for unrecognized location from A7's data core 6841 | -6/Extension | Allies destroyed B-75 Beast 6847 | -6/Extension | Learned location of 1 exit from Hub_04(d) 6862 | -6/Extension | Learned location of 1 exit from Extension 6868 | -6/Extension | Learned Extension emergency access door positions 6885 | -6/Extension | Loaded intel: 27 machine locations 6896 | -6/Extension | Lost 8 allies 6989 | -6/Extension | Rescued a captive Derelict 6990 | -6/Extension | Rescued a captive Derelict 7093 | -6/Extension | Rescued a captive Derelict 7094 | -6/Extension | Rescued a captive Derelict 7156 | -6/Extension | Lost 4 allies 7189 | -6/Extension | Entered Cetus 7189 | -6/Cetus | Accompanied by 10 allies 7202 | -6/Cetus | Spotted Cetus Guard 7209 | -6/Cetus | Allies destroyed Cetus Guard 7215 | -6/Cetus | Spotted Cetus Guard 7215 | -6/Cetus | Allies destroyed Cetus Guard 7243 | -6/Cetus | Discovered new exit (range 15) 7245 | -6/Cetus | Lost 3 allies 7336 | -6/Cetus | Spotted Cetus Guard 7336 | -6/Cetus | Spotted Cetus Guard 7359 | -6/Cetus | Spotted Cetus Guard 7362 | -6/Cetus | Build established: Commander-Sprinter 7371 | -6/Cetus | Spotted Cetus Guard 7374 | -6/Cetus | Destroyed Cetus Guard 7389 | -6/Cetus | Discovered exit to Factory (range 15) 7390 | -6/Cetus | Met Revision 17 7397 | -6/Cetus | Identified exit to Archives 7405 | -6/Cetus | Lost 4 allies 7428 | -6/Cetus | Entered Archives 7428 | -6/Archives | Accompanied by 3 allies 7474 | -6/Archives | Discovered new exit (range 16) 7486 | -6/Archives | Lost 3 allies 7486 | -6/Archives | Discovered new exit (range 13) 7641 | -6/Archives | Identified exit to Hub_04(d) 7641 | -6/Archives | Entered Hub_04(d) 7643 | -6/Hub_04(d) | Loaded intel: 23 trap records 7672 | -6/Hub_04(d) | Core integrity fell below 50% 7700 | -6/Hub_04(d) | Build established: Hacker-Sprinter 7856 | -6/Hub_04(d) | Network Hub disabled 7857 | -6/Hub_04(d) | Discovered exit to Factory (range 13) 7857 | -6/Hub_04(d) | Spotted Lightning 7857 | -6/Hub_04(d) | Spotted Lightning 7857 | -6/Hub_04(d) | Spotted Lightning 7857 | -6/Hub_04(d) | Spotted Lightning 7857 | -6/Hub_04(d) | Spotted Lightning 7857 | -6/Hub_04(d) | Spotted Lightning 7860 | -6/Hub_04(d) | Spotted B-75 Beast 7867 | -6/Hub_04(d) | Network Hub disabled 7871 | -6/Hub_04(d) | Core integrity fell below 20% 7876 | -6/Hub_04(d) | Entered Factory 7876 | -5/Factory | Evolved 2 slots: Utility x2 7877 | -5/Factory | Identified exit to Upper Caves 7878 | -5/Factory | Identified exit to Factory 7881 | -5/Factory | Loaded intel: 8 recycling unit locations 7970 | -5/Factory | Fabricated Adv. Hacking Suite? 8009 | -5/Factory | Fabricated Imp. Propulsion Shielding (x2) 8220 | -5/Factory | Repaired Cld. Field Propulsion Drive 8633 | -5/Factory | Destroyed 9 combat bots 8674 | -5/Factory | Build established: Hacker-Scout 8690 | -5/Factory | Found Rocket Array 8776 | -5/Factory | First assault squad dispatched 8796 | -5/Factory | Central database locked down 8845 | -5/Factory | Discovered exit to Factory (range 19) 8923 | -5/Factory | Learned Extension trap positions 8974 | -5/Factory | Repaired Cld. Field Propulsion Drive 8985 | -5/Factory | Learned Testing scanalyzer intel 8994 | -5/Factory | Repaired Imp. Propulsion Shielding 9118 | -5/Factory | Learned Extension trap positions 9143 | -5/Factory | Learned location of Warlord (-4) 9157 | -5/Factory | Learned 4 Extension zone layouts 9258 | -5/Factory | Loaded intel: 4 scanalyzer locations 9277 | -5/Factory | Manually triggered Chute Trap 9277 | -5/Factory | Sucked down chute 9277 | -5/Factory | Entered Waste 9278 | -5/Waste | Identified exit to Factory 9282 | -5/Waste | Spotted C-40 Crusher 9282 | -5/Waste | Spotted C-40 Crusher 9283 | -5/Waste | Spotted C-40 Crusher 9283 | -5/Waste | Spotted C-40 Crusher 9289 | -5/Waste | Spotted C-40 Crusher 9291 | -5/Waste | Spotted C-40 Crusher 9340 | -5/Waste | Destroyed C-40 Crusher 9340 | -5/Waste | Destroyed C-40 Crusher 9340 | -5/Waste | Destroyed C-40 Crusher 9360 | -5/Waste | Entered Factory 9408 | -5/Factory | Loaded intel: 8 recycling unit locations 9474 | -5/Factory | Fabricated Lgt. Neutrino Core (x1) 9475 | -5/Factory | Adv. Hacking Suite fried by hacking feedback 9553 | -5/Factory | Learned location of 1 exit from Armory 9581 | -5/Factory | Learned 4 Extension zone layouts 9603 | -5/Factory | Learned Armory stockpile data 9604 | -5/Factory | Learned Factory recycling unit intel 9644 | -5/Factory | Fabricated Hyp. Mass Driver (x2) 9658 | -5/Factory | Entered Upper Caves 9674 | -5/Upper Caves | Found DCF Scrap (13 items) 9717 | -5/Upper Caves | Identified exit to Upper Caves 9722 | -5/Upper Caves | Learned location of 2 exits from Upper Caves 9722 | -5/Upper Caves | Learned Extension terminal intel 9742 | -5/Upper Caves | Spotted B-75 Beast 9743 | -5/Upper Caves | Entered another Upper Caves area 9745 | -5/Upper Caves | Identified exit to Zhirov 9787 | -5/Upper Caves | Build established: Hacker-Ninja 9801 | -5/Upper Caves | Spotted B-75 Beast 9836 | -5/Upper Caves | Entered Zhirov 9836 | -5/Zhirov | Discovered new exit (range 3) 9837 | -5/Zhirov | Identified exit to Proximity Caves 9841 | -5/Zhirov | Met Zhirov 9846 | -5/Zhirov | Found Alien Artifact 9846 | -5/Zhirov | Identified Integrated Dissipator 9846 | -5/Zhirov | Installed Integrated Dissipator, increased core heat dissipation (+20) 9860 | -5/Zhirov | Found Alien Artifact 9898 | -5/Zhirov | Learned location of Quarantine (-3) 9898 | -5/Zhirov | Learned location of Testing (-2) 9898 | -5/Zhirov | Learned location of Command (-1) 9901 | -5/Zhirov | Zhirov requested help retrieving the SGEMP Prototype 9908 | -5/Zhirov | Entered Proximity Caves 10140 | -4/Proximity Caves | Attracted the attention of an 0b10 checkpoint 10239 | -4/Proximity Caves | Entered Factory 10239 | -4/Factory | Evolved 2 slots: Utility x2 10240 | -4/Factory | Loaded intel: 8 recycling unit locations 10268 | -4/Factory | Repaired Cld. Cesium-ion Thruster? 10298 | -4/Factory | Identified Transdimensional Reconstructor 10308 | -4/Factory | Loaded intel: 8 recycling unit locations 10438 | -4/Factory | Discovered new exit (range 21) 10464 | -4/Factory | Build established: Hacker-Scout 10465 | -4/Factory | Crushed by falling debris 10572 | -4/Factory | Found Mni. Smartbomb Launcher 10769 | -4/Factory | Fabricated Imp. Propulsion Shielding? 10998 | -4/Factory | Discovered new exit (range 12) 11068 | -4/Factory | Spotted B-86 Titan 11085 | -4/Factory | Learned Research stockpile data 11124 | -4/Factory | Discovered new exit (range 5) 11129 | -4/Factory | Identified exit to Research 11144 | -4/Factory | Discovered new exit (range 6) 11147 | -4/Factory | Identified exit to Upper Caves 11154 | -4/Factory | Learned Testing scanalyzer intel 11183 | -4/Factory | Central database locked down 11215 | -4/Factory | Learned 2 Proximity Caves zone layouts 11265 | -4/Factory | Learned 4 Research zone layouts 11334 | -4/Factory | Learned location of 2 exits from Upper Caves 11373 | -4/Factory | Loaded intel: 4 scanalyzer locations 11417 | -4/Factory | Build established: Hacker-Ninja 11507 | -4/Factory | Sucked down chute 11507 | -4/Factory | Entered Waste 11517 | -4/Waste | Spotted C-40 Crusher 11521 | -4/Waste | Spotted C-40 Crusher 11522 | -4/Waste | EMP discharged 11522 | -4/Waste | System corruption reached 10% 11522 | -4/Waste | Discovered new exit (range 12) 11522 | -4/Waste | Spotted C-40 Crusher 11522 | -4/Waste | Spotted C-40 Crusher 11524 | -4/Waste | Identified exit to Factory 11525 | -4/Waste | Entered Factory 11689 | -4/Factory | Fabricated Adv. System Restoration Module? 11727 | -4/Factory | Central database locked down 11757 | -4/Factory | Discovered exit to Research (range 6) 11803 | -4/Factory | Build established: Hacker-Scout 11805 | -4/Factory | Spotted B-86 Titan 11829 | -4/Factory | Loaded intel: 8 recycling unit locations 11854 | -4/Factory | Learned location of 1 exit from Proximity Caves 11860 | -4/Factory | Discovered exit to Research (range 14) 11922 | -4/Factory | Learned location of 1 exit from Armory 11972 | -4/Factory | Learned 8 Quarantine zone layouts 12015 | -4/Factory | Learned 2 Armory zone layouts 12073 | -4/Factory | Spotted B-86 Titan 12103 | -4/Factory | Identified exit to Garrison 12103 | -4/Factory | Entered Garrison 12162 | -4/Garrison | Garrison Relay disabled 12185 | -4/Garrison | Triggered checkpoint 12187 | -4/Garrison | Triggered checkpoint 12244 | -4/Garrison | Discovered new exit (range 37) 12244 | -4/Garrison | Discovered new exit (range 42) 12244 | -4/Garrison | Discovered new exit (range 35) 12247 | -4/Garrison | Triggered checkpoint 12257 | -4/Garrison | Installed Relay Interface Framework 12275 | -4/Garrison | Expanded RIF knowledge: Zone Cloak 12280 | -4/Garrison | H-XX Assembler disabled 12286 | -4/Garrison | Identified exit to Factory 12288 | -4/Garrison | Entered Factory 12303 | -4/Factory | Repaired Imp. Propulsion Shielding 12399 | -4/Factory | Fabricated Com. Particle Reactor (x1) 12486 | -4/Factory | Loaded intel: 8 recycling unit locations 12538 | -4/Factory | First assault squad dispatched 12681 | -4/Factory | Learned 8 Quarantine zone layouts 12817 | -4/Factory | Learned 4 Armory zone layouts 12870 | -4/Factory | Learned location of 2 exits from Factory 12912 | -4/Factory | Learned 4 Research zone layouts 12945 | -4/Factory | Learned 4 Research zone layouts 12970 | -4/Factory | Learned Research emergency access door positions 12992 | -4/Factory | Identified exit to Garrison 13046 | -4/Factory | Learned Armory stockpile data 13047 | -4/Factory | Repaired Imp. Propulsion Shielding 13099 | -4/Factory | Learned Research security intel 13112 | -4/Factory | Entered Garrison 13112 | -4/Garrison | Accompanied by 5 allies 13119 | -4/Garrison | Expanded RIF knowledge: Autooverride 13226 | -4/Garrison | Spotted B-86 Titan 13283 | -4/Garrison | Allies destroyed B-86 Titan 13320 | -4/Garrison | Lost 5 allies 13418 | -4/Garrison | Build established: Hacker-Sprinter 13478 | -4/Garrison | Triggered checkpoint 13496 | -4/Garrison | Discovered exit to Research (range 44) 13496 | -4/Garrison | Discovered exit to Research (range 28) 13496 | -4/Garrison | Discovered exit to Research (range 25) 13514 | -4/Garrison | Learned Research security intel 13522 | -4/Garrison | Triggered checkpoint 13522 | -4/Garrison | Garrison Relay disabled 13535 | -4/Garrison | Entered Research 13535 | -3/Research | Evolved 2 slots: Power x1, Utility x1 13536 | -3/Research | Identified exit to Armory 13576 | -3/Research | Spotted B-86 Titan 13617 | -3/Research | Fabricated Com. Particle Reactor (x1) 13620 | -3/Research | Adv. Hacking Suite fried by hacking feedback 13705 | -3/Research | Identified exit to Quarantine 13718 | -3/Research | Found Prototype Launcher 13718 | -3/Research | Identified Hellfire Missile Launcher 13735 | -3/Research | Revision forces began assault on 0b10 13762 | -3/Research | Found Prototype Processor 13762 | -3/Research | Identified Exp. Melee Analysis Suite 13805 | -3/Research | Met up with Revision 17++ 13883 | -3/Research | Build established: Hacker-Ninja 13949 | -3/Research | Found Prototype Processor 13949 | -3/Research | Identified Spectral Analyzer 14072 | -3/Research | Loaded intel: 5 recycling unit locations 14166 | -3/Research | Discovered new exit (range 13) 14167 | -3/Research | Identified exit to Research 14178 | -3/Research | Discovered exit to Research (range 12) 14186 | -3/Research | Found Prototype Hackware 14186 | -3/Research | Identified Exp. System Shield 14235 | -3/Research | Research terminal network offline 14345 | -3/Research | Entered Quarantine 14346 | -3/Quarantine | Identified exit to Section 7 14346 | -3/Quarantine | Identified exit to Protoforge 14371 | -3/Quarantine | Found Alien Reactor 14435 | -3/Quarantine | Identified exit to Garrison 14442 | -3/Quarantine | Found Prototype Device 14442 | -3/Quarantine | Identified Exp. Thermal Shield 14448 | -3/Quarantine | Cryocooling Duct disabled 14450 | -3/Quarantine | Cryocooling Duct disabled 14454 | -3/Quarantine | Discovered exit to Research (range 9) 14463 | -3/Quarantine | Ambient heat levels rising (+20) 14463 | -3/Quarantine | Non-combat units ordered to evacuate 14465 | -3/Quarantine | Ambient heat levels rising (+20) 14465 | -3/Quarantine | Combat units ordered to evacuate 14565 | -3/Quarantine | Quarantine Guard activated 14635 | -3/Quarantine | Spotted Quarantine Guard 14635 | -3/Quarantine | Spotted Quarantine Guard 14637 | -3/Quarantine | Spotted Quarantine Guard 14652 | -3/Quarantine | Spotted Quarantine Guard 14658 | -3/Quarantine | Found Alien Artifact 14658 | -3/Quarantine | Identified Dimensional Node Initializer 14658 | -3/Quarantine | Initialized slip node 14662 | -3/Quarantine | Found Dimensional Node Initializer 14679 | -3/Quarantine | Spotted Quarantine Guard 14703 | -3/Quarantine | Destroyed Quarantine Guard 14742 | -3/Quarantine | Found Alien Artifact 14744 | -3/Quarantine | Identified Subatomic Replicator 14744 | -3/Quarantine | Used Subatomic Replicator to create Alien Artifact 14756 | -3/Quarantine | Spotted Quarantine Guard 14758 | -3/Quarantine | Spotted Fortress 14771 | -3/Quarantine | Entered Protoforge 14786 | -3/Protoforge | Spotted Hotshot 14791 | -3/Protoforge | Spotted Hotshot 14791 | -3/Protoforge | Spotted Hotshot 14940 | -3/Protoforge | Spotted Overlord 15065 | -3/Protoforge | Spotted AP7-3 15066 | -3/Protoforge | Spotted AP7-3 15068 | -3/Protoforge | Identified Matter Drive 15076 | -3/Protoforge | Spotted EXE-6 15076 | -3/Protoforge | Spotted EXE-6 15077 | -3/Protoforge | Spotted Decapitator 15077 | -3/Protoforge | Spotted Decapitator 15087 | -3/Protoforge | UFD initiated attack on Protoforge (Readiness: Maximal) 15087 | -3/Protoforge | Loaded intel: 3 recycling unit locations 15094 | -3/Protoforge | Spotted EXE-6 15094 | -3/Protoforge | Spotted EXE-6 15096 | -3/Protoforge | Initialized slip node 15098 | -3/Protoforge | Superfortress began startup sequence 15111 | -3/Protoforge | Identified Supercharged TR 15111 | -3/Protoforge | Warped through subspace to slip node 15115 | -3/Protoforge | Spotted Decapitator 15121 | -3/Protoforge | Spotted Executioner 15123 | -3/Protoforge | Optimus attacked Superfortress 15123 | -3/Protoforge | Optimus greeted in Protoforge 15125 | -3/Protoforge | Spotted Decapitator 15128 | -3/Protoforge | Scraphulk reinforcements arrived? 15130 | -3/Protoforge | Spotted Executioner 15133 | -3/Protoforge | Found Prototype Device 15133 | -3/Protoforge | Identified Cep. Antimissile System 15136 | -3/Protoforge | Found Prototype Power Core 15136 | -3/Protoforge | Identified Cep. Zero-point Core 15138 | -3/Protoforge | Found Prototype Storage 15138 | -3/Protoforge | Identified Cep. NT7 Matterbank 15143 | -3/Protoforge | Found Prototype Ballistic Cannon 15143 | -3/Protoforge | Identified Omega Cannon 15147 | -3/Protoforge | Found Prototype Processor 15147 | -3/Protoforge | Identified Exp. Core Analyzer 15153 | -3/Protoforge | Found Prototype Processor 15153 | -3/Protoforge | Identified Exp. Armor Integrity Analyzer 15158 | -3/Protoforge | Found Prototype Storage 15158 | -3/Protoforge | Identified Cep. Chromion Battery 15165 | -3/Protoforge | Found Prototype Protection 15165 | -3/Protoforge | Identified Centrium Heavy Armor Plating 15170 | -3/Protoforge | Lost 23 allies 15316 | -3/Protoforge | Spotted Immortal 15331 | -3/Protoforge | Spotted Immortal 15338 | -3/Protoforge | Spotted Immortal 15351 | -3/Protoforge | Allies destroyed Immortal 15356 | -3/Protoforge | Spotted Executioner 15373 | -3/Protoforge | Spotted Striker 15375 | -3/Protoforge | Spotted Striker 15403 | -3/Protoforge | Spotted Striker 15404 | -3/Protoforge | Spotted Striker 15406 | -3/Protoforge | Destroyed Striker 15413 | -3/Protoforge | Destroyed Striker 15425 | -3/Protoforge | Spotted Executioner 15430 | -3/Protoforge | Spotted Executioner 15439 | -3/Protoforge | Destroyed Executioner 15454 | -3/Protoforge | Found Prototype Device 15454 | -3/Protoforge | Identified Exp. Cloaking Device 15455 | -3/Protoforge | UFD reported confirmed Drillbomb installation 15469 | -3/Protoforge | Lost 3 allies 15505 | -3/Protoforge | Spotted Executioner 15517 | -3/Protoforge | UFD reported confirmed Drillbomb installation 15620 | -3/Protoforge | UFD reported confirmed Drillbomb installation 15675 | -3/Protoforge | Spotted V811-i 15690 | -3/Protoforge | Spotted Hotshot 15692 | -3/Protoforge | Spotted Hotshot 15692 | -3/Protoforge | Spotted Hotshot 15694 | -3/Protoforge | Spotted Hotshot 15705 | -3/Protoforge | Found Prototype Device 15705 | -3/Protoforge | Identified Crosscalibrator 15708 | -3/Protoforge | Spotted Immortal 15708 | -3/Protoforge | Spotted Immortal 15723 | -3/Protoforge | Destroyed V811-i 15761 | -3/Protoforge | Spotted Decapitator 15761 | -3/Protoforge | Spotted Decapitator 15846 | -3/Protoforge | Destroyed Hotshot 15858 | -3/Protoforge | Destroyed Hotshot 15912 | -3/Protoforge | Build established: Hacker-Skirmisher 15990 | -3/Protoforge | Destroyed Immortal 16001 | -3/Protoforge | Destroyed Immortal 16015 | -3/Protoforge | Spotted Decapitator 16021 | -3/Protoforge | Spotted Decapitator 16021 | -3/Protoforge | Spotted Decapitator 16028 | -3/Protoforge | Found Cep. Deflector Sword 16056 | -3/Protoforge | Spotted Striker 16056 | -3/Protoforge | Spotted Executioner 16079 | -3/Protoforge | Spotted Executioner 16135 | -3/Protoforge | Forge Plexus network access discovered 16139 | -3/Protoforge | Spotted Striker 16174 | -3/Protoforge | Spotted Executioner 16175 | -3/Protoforge | Spotted Executioner 16207 | -3/Protoforge | Lost 7 allies 16214 | -3/Protoforge | Found Cep. NT7 Matterbank 16216 | -3/Protoforge | Spotted Executioner 16217 | -3/Protoforge | Spotted Executioner 16252 | -3/Protoforge | Spotted B-86 Titan 16268 | -3/Protoforge | Spotted Executioner 16269 | -3/Protoforge | Spotted Executioner 16357 | -3/Protoforge | Found Faulty Cep. Smart ZDS 16363 | -3/Protoforge | Found Faulty Cep. Smart ZDS 16488 | -3/Protoforge | Destroyed Decapitator 16488 | -3/Protoforge | Destroyed Decapitator 16552 | -3/Protoforge | Destroyed Decapitator 16552 | -3/Protoforge | Destroyed Decapitator 16555 | -3/Protoforge | Destroyed Decapitator 16579 | -3/Protoforge | Spotted Executioner 16579 | -3/Protoforge | Spotted Executioner 16594 | -3/Protoforge | Spotted Decapitator 16594 | -3/Protoforge | Spotted Decapitator 16594 | -3/Protoforge | Spotted Decapitator 16594 | -3/Protoforge | Spotted Decapitator 16597 | -3/Protoforge | Destroyed Decapitator 16597 | -3/Protoforge | Destroyed Decapitator 16597 | -3/Protoforge | Destroyed Decapitator 16597 | -3/Protoforge | Destroyed Decapitator 16848 | -3/Protoforge | Spotted AP7-3 16852 | -3/Protoforge | Spotted AP7-3 16951 | -3/Protoforge | Found Faulty Cep. Lightning Penetrator 16956 | -3/Protoforge | Found Cep. Variable Chargecaster 16958 | -3/Protoforge | Found Faulty Cep. Lightning Penetrator 17031 | -3/Protoforge | Found Faulty Cep. Disintegration Ray 17040 | -3/Protoforge | Found Faulty Cep. Disintegration Ray 17262 | -3/Protoforge | Destroyed AP7-3 17279 | -3/Protoforge | Destroyed AP7-3 17282 | -3/Protoforge | Found Exp. ECM Suite 17284 | -3/Protoforge | Found Prototype Energy Gun 17284 | -3/Protoforge | Identified Enh. Gamma Rifle 17351 | -3/Protoforge | Spotted Immortal 17351 | -3/Protoforge | Spotted Immortal 17360 | -3/Protoforge | Spotted V865-y 17384 | -3/Protoforge | Destroyed V865-y 17428 | -3/Protoforge | Destroyed Immortal 17429 | -3/Protoforge | Destroyed Immortal 17441 | -3/Protoforge | Spotted V361-o 17442 | -3/Protoforge | Found Cep. Antigrav Storage Unit 17444 | -3/Protoforge | Found Cep. Chromion Battery 17460 | -3/Protoforge | Found Cep. Fieldthrust Drive 17462 | -3/Protoforge | Found Cep. Fieldthrust Drive 17503 | -3/Protoforge | Found Faulty Cep. Cloak Mesh 17504 | -3/Protoforge | Found Faulty Cep. Cloak Mesh 17538 | -3/Protoforge | UFD reported confirmed Drillbomb installation 17565 | -3/Protoforge | Spotted V938-p 17598 | -3/Protoforge | Found Cep. Zero-point Core 17599 | -3/Protoforge | Found Faulty Cep. Zero-point Core 17600 | -3/Protoforge | UFD reported confirmed Drillbomb installation 17600 | -3/Protoforge | Found Cep. Zero-point Core 17638 | -3/Protoforge | Spotted Executioner 17669 | -3/Protoforge | Spotted Executioner 17781 | -3/Protoforge | Found Femtoactuators 17801 | -3/Protoforge | Found Mni. Quantum Capacitor 17813 | -3/Protoforge | Found Prototype Device 17813 | -3/Protoforge | Identified Exp. Shock Absorption System 17839 | -3/Protoforge | Found Cep. Plasma Driver 17937 | -3/Protoforge | Found Cep. Tactical Fusion Warhead 17945 | -3/Protoforge | Found Cep. Antimissile System 17952 | -3/Protoforge | Spotted Executioner 17969 | -3/Protoforge | Spotted Executioner 17974 | -3/Protoforge | Spotted Executioner 18027 | -3/Protoforge | Spotted Executioner 18030 | -3/Protoforge | Spotted Striker 18030 | -3/Protoforge | Spotted Executioner 18170 | -3/Protoforge | UFD reported confirmed Drillbomb installation 18195 | -3/Protoforge | Spotted Executioner 18303 | -3/Protoforge | UFD reported confirmed Drillbomb installation 18375 | -3/Protoforge | Destroyed Hotshot 18437 | -3/Protoforge | Spotted Striker 18437 | -3/Protoforge | Spotted Executioner 18437 | -3/Protoforge | Spotted Striker 18456 | -3/Protoforge | Discovered exit to Research (range 8) 18457 | -3/Protoforge | Found UFD Drillbomb 18462 | -3/Protoforge | Spotted Executioner 18462 | -3/Protoforge | Spotted Executioner 18502 | -3/Protoforge | Found UFD Drillbomb 18545 | -3/Protoforge | Found UFD Drillbomb 18556 | -3/Protoforge | Spotted Striker 18584 | -3/Protoforge | Installed UFD Drillbomb at designated target 18584 | -3/Protoforge | UFD reported confirmed Drillbomb installation 18596 | -3/Protoforge | Installed UFD Drillbomb at designated target 18596 | -3/Protoforge | UFD reported confirmed Drillbomb installation 18692 | -3/Protoforge | Installed UFD Drillbomb at designated target 18692 | -3/Protoforge | UFD reported confirmed Drillbomb installation 18693 | -3/Protoforge | UFD began Drillbomb countdown 18699 | -3/Protoforge | Entered Research 18699 | -2/Research | Evolved 2 slots: Propulsion x2 18831 | -2/Research | Spotted Striker 18831 | -2/Research | Spotted Striker 18837 | -2/Research | Discovered new exit (range 23) 18862 | -2/Research | Found Exp. Signal Interpreter 18865 | -2/Research | Spotted B-90 Cyclops 18948 | -2/Research | Discovered new exit (range 13) 18949 | -2/Research | First assault squad dispatched 18949 | -2/Research | Identified exit to Access 18958 | -2/Research | Spotted CY-PHR 19003 | -2/Research | Spotted B-90 Cyclops 19007 | -2/Research | Lost 5 parts (3n2u) 19090 | -2/Research | Identified exit to Testing 19174 | -2/Research | Fabricated Quantum Shading Machine (x1) 19265 | -2/Research | Learned Access trap positions 19275 | -2/Research | Spotted B-90 Cyclops 19288 | -2/Research | Build established: Hacker-Sprinter 19289 | -2/Research | Spotted B-90 Cyclops 19316 | -2/Research | Spotted Striker 19316 | -2/Research | Spotted Striker 19403 | -2/Research | Learned Access stockpile data 19448 | -2/Research | Learned 8 Access zone layouts 19476 | -2/Research | Entered Testing 19478 | -2/Testing | Loaded intel: 3 scanalyzer locations 19480 | -2/Testing | Found Prototype Energy Gun 19480 | -2/Testing | Identified Hyp. EM Gauss Rifle 19541 | -2/Testing | Found Prototype Launcher 19543 | -2/Testing | Identified Ragnarok Missile Launcher 19635 | -2/Testing | Spotted Striker 19655 | -2/Testing | Spotted Striker 19667 | -2/Testing | Spotted Alpha 7 19667 | -2/Testing | Destroyed Striker 19678 | -2/Testing | Learned Research stockpile data 19678 | -2/Testing | Destroyed Striker 19706 | -2/Testing | Destroyed Alpha 7 19710 | -2/Testing | Stole the SGEMP Prototype 19726 | -2/Testing | First assault squad dispatched 19740 | -2/Testing | Learned Access terminal intel 19858 | -2/Testing | Learned Research stockpile data 19868 | -2/Testing | Repaired Cld. Field Propulsion Drive 19878 | -2/Testing | Learned Research stockpile data 19890 | -2/Testing | Learned 12 Access zone layouts 19912 | -2/Testing | Learned Research recycling unit intel 19921 | -2/Testing | Build established: Hacker-Ninja 19943 | -2/Testing | Learned Research scanalyzer intel 19964 | -2/Testing | Entered Access 19964 | -1/Access | Evolved 2 slots: Propulsion x1, Utility x1 19965 | -1/Access | Identified exit to Command 19965 | -1/Access | Delivered the SGEMP Prototype to Zhirov 19965 | -1/Access | Zhirov transferred Access data 19966 | -1/Access | Loaded intel: 117 machine locations 19966 | -1/Access | Loaded intel: 96 trap records 19966 | -1/Access | Identified exit to Surface 19966 | -1/Access | Discovered exit to Surface (range 121) 19966 | -1/Access | Discovered exit to Command (range 106) 19966 | -1/Access | Loaded intel: 96 trap records 19968 | -1/Access | Loaded intel: 20 terminal locations 19976 | -1/Access | Spotted B-99 Colossus 20032 | -1/Access | Zhirov warped through subspace 20033 | -1/Access | Fabricated Cld. Q-thruster? 20104 | -1/Access | Fabricated Quantum Shading Machine (x1) 20206 | -1/Access | Unchained authorized (V4-D3R) 20470 | -1/Access | Entered Command 20473 | -1/Command | Phase Generator disabled 20509 | -1/Command | Spotted Executioner 20512 | -1/Command | Spotted Executioner 20604 | -1/Command | Found Exp. Core Analyzer 20635 | -1/Command | Spotted M Guard 20636 | -1/Command | Spotted M Guard 20636 | -1/Command | Spotted Combat Programmer 20636 | -1/Command | Spotted Combat Programmer 20653 | -1/Command | Destroyed Combat Programmer 20657 | -1/Command | Destroyed Combat Programmer 20659 | -1/Command | Destroyed M Guard 20694 | -1/Command | Destroyed M Guard 20694 | -1/Command | All MAIN.C guards destroyed 20714 | -1/Command | Met MAIN.C 20717 | -1/Command | 0b10 Conduit disabled 20746 | -1/Command | Core integrity fell below 50% 20766 | -1/Command | System corruption reached 10% 20796 | -1/Command | Lost 18 parts (2p6n9u1w) 20799 | -1/Command | Spotted Alpha 7 20799 | -1/Command | Spotted Striker 20799 | -1/Command | Spotted Executioner 20799 | -1/Command | Spotted Executioner 20799 | -1/Command | Spotted Alpha 7 20799 | -1/Command | Spotted Striker 20799 | -1/Command | Spotted Executioner 20799 | -1/Command | Spotted Executioner 20800 | -1/Command | Spotted B-99 Colossus 20801 | -1/Command | Spotted B-99 Colossus 20802 | *** | Escaped! Last Messages --------------- area. 20800_ Stasis field depleted. 20800_ Centrium Greatsword destroyed. 20800_ Adv. Sensor Array destroyed. 20800_ Knocked back. 20800_ Triggered Stasis Trap. 20800_ A bubble of rippling energy engulfs the area. 20800_ Stasis field depleted. 20801_ The Access Shell folds into the floor. 20801_ Penetrated by Slug. 20801_ Exp. Biomechanical Wings destroyed. 20801_ Penetrated by Slug. 20801_ Slug penetrates B-99 Colossus. 20801_ Slug penetrates Wall. 20801_ Exp. ECM Suite destroyed. 20801_ Slug penetrates Wall. 20801_ Penetrated by Slug. 20801_ Slug penetrates Wall. 20801_ Slug penetrates Striker. Map ----- +----------------------------------------------------+ | ?????# """" #?????????????????????? | | ?????# "" #?????????????????????? | | ?????# #?????????????????????? | | ?????# #?????????????????????? | | ?????# +?????????????????????? | | ?????# #?????????????????????? | | ?????# ### ########## #?????????????????????? | | ??????????# ??????????# #?????????????????????? | | ??????????#??????????##++++##????????????????????? | | ?????????????????????# #????????????????????? | | ????????????????????## ##???????????????????? | | ????????????????????# 7 #???????????????????? | | ????????????????????##K 7##???????????????????? | | ????????????????????# #???????????????????? | | ????????????????????## KE###??????????????????? | | ????????????????????# % "???????????????????? | | ????????????????????##EE E##???????????????????? | | ????????????????????# #???????????????????? | | ??????????????????###; ####?????????????????? | | ??????????????????#BB BB #?????????????????? | | ??????????????????#BB BB #?????????????????? | | ??????????????????# #?????????????????? | | ??????????????????# #?????????????????? | | ??????????????????# #?????????????????? | | ??????????????????# "" #?????????????????? | | ??????????????????# %"@ #?????????????????? | | ?????????????????#; #?????????????????? | | ?????????????????## #?????????????????? | | ??????????????????# #?????????????????? | | ??????????????????# #?????????????????? | | ??????????????????# #?????????????????? | | ??????????????????##############?????????????????? | | ?????????????????????????????????????????????????? | | ?????????????????????????????????????????????????? | | ?????????????????????????????????????????????????? | | ?????????????????????????????????????????????????? | | ?????????????????????????????????????????????????? | | ?????????????????????????????????????????????????? | | ?????????????????????????????????????????????????? | | ?????????????????????????????????????????????????? | | ?????????????????????????????????????????????????? | | ?????????????????????????????????????????????????? | | ?????????????????????????????????????????????????? | | ?????????????????????????????????????????????????? | | ?????????????????????????????????????????????????? | | ?????????????????????????????????????????????????? | | | | | | | | | +----------------------------------------------------+ Best States ------------- Heat Dissipation 72 Coolant Potential 120 Energy Generation 61 Energy Capacity 1640 Matter Stores 300 Matter Capacity 1050 Sight Range 24 Robot Scan Range 18 Terrain Scan Density 10 ECM Strength 3 Jamming Range 16 Cloak Strength 9 Additional Mass Support 20 Corruption Containment 8 Corruption Block 15 Armor Coverage 225 Core Shielding 20 Propulsion Shielding 90 Weapon Shielding 90 Point Defense Rating 480 Projectile Deflection 15 Melee Speed Boost 50 Evasion (%) 68 Launcher Accuracy 30 Core Analysis 8 Offensive Hacking 50 Defensive Hacking 12 Relay Coupler Types 1 Relay Coupler Value 32 Authchip Count 1 Trap Extractor Capacity 8 Item Schematics ----------------- Adv. EMP Blaster | -9/Materials | Scanalyzed Imp. Propulsion Shielding | -9/Materials | Scanalyzed VTOL Module | -9/Materials | Hacked Hacking Suite | -8/Materials | Scanalyzed Field Laser | -8/Materials | Extracted Com. Matter Pod | -8/Materials | Extracted Imp. Sensor Array | -8/Materials | Extracted Mni. Grenade Launcher | -8/Materials | Extracted Cmb. Airjet | -8/Recycling | Hacked Adv. Melee Analysis Suite | -8/Recycling | Hacked Cesium-ion Thruster | -8/Recycling | Hacked Surge Thruster | -8/Recycling | Hacked Lgt. Angular Momentum Engine | -8/Recycling | Hacked Hyp. Mass Driver | -6/Factory | Hacked Adv. Hacking Suite | -6/Factory | Hacked Nuclear Pulse Array | -6/Factory | Hacked Exp. Weapon Shielding | -6/Factory | Scanalyzed Lrn. Terrain Scanner | -6/Factory | Hacked Field Propulsion Array | -6/Extension | Hacked Cld. Impulse Thruster | -5/Factory | Scanalyzed Imp. System Restoration Module | -5/Factory | Scanalyzed Imp. Fusion Compressor | -5/Factory | Hacked Adv. Plasma Cannon | -5/Factory | Scanalyzed Hcp. Storage Unit | -5/Factory | Hacked Lgt. Neutrino Core | -5/Factory | Hacked Assault Drone Bay | -5/Zhirov | Free Exp. Heat Sink | -5/Zhirov | Free Exp. Optical Array | -5/Zhirov | Free Imp. Arc Thrower | -5/Zhirov | Free Lrn. Missile Launcher | -4/Factory | Scanalyzed Adv. Transmission Jammer | -4/Factory | Scanalyzed Cld. Field Propulsion Drive | -4/Factory | Scanalyzed Imp. Cloaking Device | -4/Factory | Hacked Adv. System Restoration Module | -4/Factory | Hacked Com. Particle Reactor | -4/Factory | Scanalyzed Adv. Phase Shifter | -4/Factory | Hacked Rnf. Quantum Reactor | -4/Factory | Hacked Kinetic Spear | -3/Protoforge | Archive Adv. Energy Well | -3/Protoforge | Archive Imp. Energy Well | -3/Protoforge | Archive Adv. Matter Compressor | -3/Protoforge | Archive Hvy. Wave Gun | -3/Protoforge | Archive Cld. Proton Cannon | -3/Protoforge | Archive Prc. Matter Filter | -3/Protoforge | Archive Imp. Diametric Drive | -3/Protoforge | Reported Com. Tesla Bomb Launcher | -3/Protoforge | Reported Enh. Biometal Leg | -3/Protoforge | Reported Lgt. Antimatter Cannon | -3/Protoforge | Reported Q-thruster | -3/Protoforge | Reported Exp. Coolant Injector | -3/Protoforge | Reported Spectral Analyzer | -3/Protoforge | Reported Imp. Matter Neutralizer | -3/Protoforge | Reported Micro-nuke Launcher | -3/Protoforge | Reported Helical Railgun | -3/Protoforge | Reported Imp. Linear Gravjet | -3/Protoforge | Reported Exp. System Shield | -3/Protoforge | Reported Plasma Sword | -3/Protoforge | Reported Prc. Phase Gun | -3/Protoforge | Reported Exp. Cooling System | -3/Protoforge | Reported Med. Storage Unit | -3/Protoforge | Reported Adv. Dynamic Insulation System | -3/Protoforge | Reported Imp. Thermal Defense Suite | -3/Protoforge | Reported Exp. Signal Interpreter | -3/Protoforge | Reported Exp. Thermal Defense Suite | -3/Protoforge | Reported Triangulator | -3/Protoforge | Reported ECM Suite | -3/Protoforge | Reported Arm. Medium Treads | -3/Protoforge | Reported Cld. Gravmag System | -3/Protoforge | Reported Centrium Medium Armor Plating | -3/Protoforge | Reported Graphene Brace | -3/Protoforge | Reported Enh. Multireflex Exoskeleton | -3/Protoforge | Reported Adv. KE Penetrator | -3/Protoforge | Reported Hellfire Missile Launcher | -3/Protoforge | Reported Weight Redist. System | -3/Protoforge | Reported Imp. Matter Compressor | -3/Protoforge | Archive Cld. Phase Cannon | -3/Protoforge | Archive Cld. Phase Gun | -3/Protoforge | Archive Imp. KE Penetrator | -3/Protoforge | Archive Enh. Coil Gun | -3/Protoforge | Archive Cld. Fission Core | -3/Protoforge | Archive Exp. Energy Well | -3/Protoforge | Archive Exp. Thermal Generator | -3/Protoforge | Archive Adv. Reaction Control System | -3/Protoforge | Reported Electron Diverter | -3/Protoforge | Reported Adv. Plasma Rifle | -3/Protoforge | Reported Imp. Antigrav System | -3/Protoforge | Reported Gravity Neutralizer | -3/Protoforge | Reported Imp. Lightning Gun | -3/Protoforge | Reported Hvy. Proton Missile Launcher | -3/Protoforge | Reported Transmission Jammer | -3/Protoforge | Reported Hvy. Gatling Laser | -3/Protoforge | Reported Exp. Matter Compressor | -3/Protoforge | Reported Cld. Antigrav System | -3/Protoforge | Reported Lyr. Light Armor Plating | -3/Protoforge | Reported Imp. Thunder Leg | -3/Protoforge | Reported Exp. Thermal Shield | -3/Protoforge | Reported Imp. Remote Shield | -3/Protoforge | Reported Adv. Myomer Leg | -3/Protoforge | Reported Centrium Heavy Armor Plating | -3/Protoforge | Reported Hvy. Dispersion Rifle | -3/Protoforge | Reported Gravity Flail | -3/Protoforge | Reported Hds. Centrium Wheel | -3/Protoforge | Reported Fusion Bomb Launcher | -3/Protoforge | Reported Railgun | -3/Protoforge | Reported Cld. Nuclear Pulse Thruster | -3/Protoforge | Reported Adv. Kinecellerator | -3/Protoforge | Reported Coolant Network | -3/Protoforge | Reported Prc. Energy Filter | -3/Protoforge | Reported Exp. ECM Suite | -3/Protoforge | Reported Exp. EM Disruption Field | -3/Protoforge | Reported Adv. Micro-nuke Launcher | -3/Protoforge | Reported Actuator Array | -3/Protoforge | Reported Exp. Hacking Suite | -3/Protoforge | Reported Lrg. Storage Unit | -3/Protoforge | Reported Adv. Hardlight Generator | -3/Protoforge | Reported HERF Cannon | -3/Protoforge | Reported Focal Shield | -3/Protoforge | Reported Stealth Drone Bay | -3/Protoforge | Reported Particle Reactor | -3/Protoforge | Reported Adv. Gravity Neutralizer | -3/Protoforge | Reported Matter Compressor | -3/Protoforge | Reported Hvy. Tesla Rifle | -3/Protoforge | Reported Hvy. Hardcell Cannon | -3/Protoforge | Reported Adv. Heavy Treads | -3/Protoforge | Reported Exp. Melee Analysis Suite | -3/Protoforge | Reported Dispersion Rifle | -3/Protoforge | Reported Hvy. Neutron Cannon | -3/Protoforge | Reported Shock Maul | -3/Protoforge | Reported Enh. Fission Core | -3/Protoforge | Reported Quantum Capacitor | -3/Protoforge | Reported Enh. Armored Medium Treads | -3/Protoforge | Reported Enh. Armored Leg | -3/Protoforge | Reported Gyrokinetic Inverter | -3/Protoforge | Reported Lrn. Phase Cannon | -3/Protoforge | Reported Imp. Launcher Guidance Computer | -3/Protoforge | Reported Particle Accelerator | -3/Protoforge | Reported Exp. Shield Generator | -3/Protoforge | Reported Com. Mass Driver | -3/Protoforge | Reported Neutron Missile Launcher | -3/Protoforge | Reported Molecular Scythe | -3/Protoforge | Reported Imp. Particle Accelerator | -3/Protoforge | Reported Adv. Thermal Defense Suite | -3/Protoforge | Reported Exp. Terrain Scan Processor | -3/Protoforge | Reported Impulse Thruster Array | -3/Protoforge | Reported Adv. Point Defense System | -3/Protoforge | Reported Tesla Bomb Launcher | -3/Protoforge | Reported Mni. Smartbomb Launcher | -3/Protoforge | Reported Exp. Power Amplifier | -3/Protoforge | Reported Plasma Lance | -3/Protoforge | Reported Cld. Plasma Rifle | -3/Protoforge | Reported Thermal Defense Suite | -3/Protoforge | Reported Enh. Optical Array | -3/Protoforge | Reported Adv. Weight Redist. System | -3/Protoforge | Reported Quantum Shading Machine | -3/Protoforge | Reported Machine Analyzer | -3/Protoforge | Reported Ionic Axe | -3/Protoforge | Reported Adv. Variable Charge Gun | -3/Protoforge | Reported Exp. Focal Shield | -3/Protoforge | Reported Vibroblade | -3/Protoforge | Reported Hvy. Proton Cannon | -3/Protoforge | Reported Exp. Flexi-carbon Leg | -3/Protoforge | Reported Cld. Q-thruster | -2/Research | Hacked Exp. Reaction Control System | -2/Testing | Hacked Robot Schematics ------------------ L-61 Swordsman | -3/Protoforge | Archive B-74 Champion | -3/Protoforge | Archive Y-72 Warden | -3/Protoforge | Archive Fabricated ------------ Hyp. Mass Driver | x2 | -6/Factory | Authchip O-24 Administrator | x1 | -6/Factory | Preloaded T-07 Excavator | x2 | -6/Factory | Preloaded Adv. Hacking Suite | x1 | -5/Factory | Authchip Imp. Propulsion Shielding | x2 | -5/Factory Lgt. Neutrino Core | x1 | -5/Factory | Authchip Hyp. Mass Driver | x2 | -5/Factory Imp. Propulsion Shielding | x2 | -4/Factory Adv. System Restoration Module | x2 | -4/Factory Com. Particle Reactor | x1 | -4/Factory | Authchip Com. Particle Reactor | x1 | -3/Research | Authchip Quantum Shading Machine | x1 | -2/Research | Authchip Cld. Q-thruster | x1 | -1/Access | Authchip Quantum Shading Machine | x1 | -1/Access Repaired ---------- Adv. EMP Blaster | 58% | -9/Materials Flight Unit | 5% | -8/Storage Lgt. Fission Core | 23% | -6/Factory Cld. Field Propulsion Drive | 6% | -5/Factory Cld. Field Propulsion Drive | 21% | -5/Factory Imp. Propulsion Shielding | 27% | -5/Factory Cld. Cesium-ion Thruster | 22% | -4/Factory Imp. Propulsion Shielding | 34% | -4/Factory Imp. Propulsion Shielding | 36% | -4/Factory Cld. Field Propulsion Drive | 16% | -2/Testing Studied --------- VTOL Module | -9/Materials | Hacked Flight Unit | -9/Materials | Hacked Lgt. Nuclear Core | -8/Materials | Hacked Lrn. Missile Launcher | -6/Factory | Hacked Lgt. Fission Core | -6/Factory | Hacked Nuclear Pulse Thruster | -6/Factory | Hacked Nuclear Pulse Array | -5/Factory | Hacked Hyp. Mass Driver | -4/Factory | Hacked Impulse Thruster | -4/Factory | Hacked Power Sword | -4/Factory | Hacked Mic. Fission Core | -3/Research | Hacked Q-thruster | -3/Research | Hacked Adv. Remote Datajack | -1/Access | Hacked Alien Tech Used ----------------- Integrated Dissipator Dimensional Node Initializer Subatomic Replicator Matter Drive Supercharged TR Achievements -------------- Fight Me IRL Challenges ------------ None Game ------ Seed AdvancedNeutronMallet Manual? 0 Play Time 10:20:18 Cumulative 409.7 hours Start 2026.09.05 @ 14:12:36 End 2026.09.07 @ 12:46:08 Sessions 11 Manual Loads 0 Difficulty Rogue Special Mode None Game No. 194 Rogue 194 Adventurer 0 Explorer 0 Win Type 0 Total 43 Types 22/1/9/2/5/1/1/0/0/2 Lore% 90 Gallery% 81 Achievement% 88 Wizard Run 0 Options --------- Layout 1 ASCII 0 Keyboard 0 Movement Numpad Keybinds 0 Fullscreen 1 Font 24/Smallcaps Map View 50x35 Zoom Use 0% Tactical HUD 1 Map Filters NONE Filters NONE Steam 1 RUN: a6057671-d6c2-4351-820e-20a09ba9ffbc